Workbook

Sheet Rozvaha
A1: Rozvaha (1.1.2010 - 30.6.2018) | G1: 2010 | H1: 2011 | I1: 2012 | J1: 2013 | K1: 2014 | L1: 2015 | M1: 1.1.2016 - 30.6.2017
A2: Aktiva | G2: =G3+G4+G38+G75 -> 15344 | H2: 14986 | I2: 14495 | J2: 19833 | K2: 15536 | L2: 14635 | M2: 16670
B3: Pohledávky za upsaný základní kapitál | G3: 0 | H3: 0 | I3: 0 | J3: 0 | K3: 0 | L3: 0 | M3: 0
B4: Dlouhodobý majetek | G4: =G5+G15+G28 -> 977 | H4: 1498 | I4: 2233 | J4: 1204 | K4: 911 | L4: 390 | M4: 469
C5: Dlouhodobý nehmotný majetek | G5: =G6+G7+G10+G11+G12 -> 0 | H5: =H6+H7+H10+H11+H12 -> 0 | I5: 736 | J5: 0 | K5: 0 | L5: 0 | M5: 0
D6: Nehmotné výsledky výzkumu a vývoje
D7: Ocenitelná práva | G7: =SUM(G8:G9) -> 0 | H7: 0 | I7: 736 | J7: 0 | K7: 0 | L7: 0 | M7: 0
E8: Software | G8: 0 | H8: 0 | I8: 736 | J8: 0 | K8: 0 | L8: 0 | M8: 0
E9: Ocenitelná práva
D10: Goodwill
D11: Ostatní dlouhodobý nehmotný majetek
D12: Poskytnuté zálohy na dlouhodobý nehmotný majetek a nedokončený dlouhodobý nehmotný majetek | G12: =SUM(G13:G14) -> 0 | H12: =SUM(H13:H14) -> 0 | I12: 0 | J12: 0 | K12: 0 | L12: 0 | M12: 0
E13: Poskytnuté zálohy na dlouhodobý nehmotný majetek
E14: Nedokončený dlouhodobý nehmotný majetek
C15: Dlouhodobý hmotný majetek | G15: =G16+G19+G21+G25 -> 977 | H15: =H16+H19+H21+H25 -> 1498 | I15: 1497 | J15: 1204 | K15: 911 | L15: 390 | M15: 469
D16: Pozemky a stavby | G16: =SUM(G17:G18) -> 452 | H16: =SUM(H17:H18) -> 437 | I16: 422 | J16: 407 | K16: 392 | L16: 0 | M16: 0
E17: Pozemky | G17: 108 | H17: 108 | I17: 108 | J17: 108 | K17: 108
E18: Stavby | G18: 344 | H18: 329 | I18: 314 | J18: 299 | K18: 284
D19: Hmotné movité věci a jejich soubory | G19: 525 | H19: 1061 | I19: 1075 | J19: 797 | K19: 519 | L19: 390 | M19: 469
D20: Oceňovací rozdíl k nabytému majetku
D21: Ostatní dlouhodobý hmotný majetek | G21: =SUM(G22:G24) -> 0 | H21: =SUM(H22:H24) -> 0 | I21: 0 | J21: 0 | K21: 0 | L21: 0 | M21: 0
E22: Pěstitelské celky trvalých porostů
E23: Dospělá zvířata a jejich skupiny
E24: Jiný dlouhodobý hmotný majetek
D25: Poskytnuté zálohy na dlouhodobý hmotný majetek a nedokončený dlouhodobý hmotný majetek | G25: =SUM(G26:G27) -> 0 | H25: 0 | I25: 0 | J25: 0 | K25: 0 | L25: 0 | M25: 0
E26: Poskytnuté zálohy na dlouhodobý hmotný majetek
E27: Nedokončený dlouhodobý hmotný majetek
C28: Dlouhodobý finanční majetek | G28: =SUM(G29:G35) -> 0 | H28: =SUM(H29:H35) -> 0 | I28: 0 | J28: 0 | K28: 0 | L28: 0 | M28: 0
D29: Podíly - ovládaná nebo ovládající osoba
D30: Zápůjčky a úvěry - ovládající a řídící osoba, podstatný vliv
D31: Podíly - podstatný vliv
D32: Zápůjčky a úvěry - podstatný vliv
D33: Ostatní dlouhodobé cenné papíry a podíly
D34: Zápůjčky a úvěry - ostatní
D35: Ostatní dlouhodobý finanční majetek | G35: =SUM(G36:G37) -> 0 | H35: =SUM(H36:H37) -> 0 | I35: 0 | J35: 0 | K35: 0 | L35: 0 | M35: 0
E36: Jiný dlouhodobý finanční majetek
E37: Poskytnuté zálohy na dlouhodobý finanční majetek
B38: Oběžná aktiva | G38: =G39+G47+G69+G72 -> 12761 | H38: =H39+H47+H69+H72 -> 10413 | I38: 9549 | J38: 17184 | K38: 12737 | L38: 13134 | M38: 16035
C39: Zásoby | G39: =G40+G41+G42+G45+G46 -> 3 | H39: =H40+H41+H42+H45+H46 -> 1538 | I39: 99 | J39: 840 | K39: 317 | L39: 234 | M39: 0
D40: Materiál
D41: Nedokončená výroba a polotovary | H41: 272 | I41: 48 | J41: 840 | K41: 317 | L41: 234
D42: Výrobky | G42: =SUM(G43:G44) -> 3 | H42: =SUM(H43:H44) -> 1266 | I42: 51 | J42: 0 | K42: 0 | L42: 0 | M42: 0
E43: Výrobky
E44: Zboží | G44: 3 | H44: 1266 | I44: 51
D45: Mladá a ostatní zvířata a jejich skupiny
D46: Poskytnuté zálohy na zásoby
C47: Pohledávky | G47: =G48+G58 -> 4263 | H47: =H48+H58 -> 3980 | I47: 4994 | J47: 7022 | K47: 3897 | L47: 1964 | M47: 11629
D48: Dlouhodobé pohledávky | G48: =SUM(G49:G53) -> 0 | H48: =SUM(H49:H53) -> 0 | I48: 0 | J48: 0 | K48: 0 | L48: 0 | M48: 0
E49: Pohledávky z obchodních vztahů
E50: Pohledávky - ovládaná nebo ovládající osoba
E51: Pohledávky - podstatný vliv
E52: Odložená daňová pohledávka
E53: Poledávky - ostatní | G53: =SUM(G54:G57) -> 0 | H53: =SUM(H54:H57) -> 0 | I53: 0 | J53: 0 | K53: 0 | L53: 0 | M53: 0
F54: Pohledávky za společníky
F55: Dlouhodobé poskytnuté zálohy
F56: Dohadné účty aktivní
F57: Jiné pohledávky
D58: Krátkodobé pohledávky | G58: =G59+G60+G61+G62 -> 4263 | H58: =H59+H60+H61+H62 -> 3980 | I58: 4994 | J58: 7022 | K58: 3897 | L58: 1964 | M58: 11629
E59: Pohledávky z obchodních vztahů | G59: 3640 | H59: 3667 | I59: 4765 | J59: 6710 | K59: 3739 | L59: 1817 | M59: 8806
E60: Pohledávky - ovládaná nebo ovládající osoba
E61: Pohledávky - podstatný vliv
E62: Poledávky - ostatní | G62: =SUM(G63:G68) -> 623 | H62: =SUM(H63:H68) -> 313 | I62: 229 | J62: 312 | K62: 158 | L62: 147 | M62: 2823
F63: Pohledávky za společníky
F64: Sociální zabezpečení a zdravotní pojištění | M64: -497
F65: Stát - daňové pohledávky | H65: 7 | L65: 5 | M65: 1275
F66: Krátkodobé poskytnuté zálohy | G66: 611 | H66: 294 | I66: 215 | J66: 286 | K66: 145 | L66: 138 | M66: 167
F67: Dohadné účty aktivní | M67: 1878
F68: Jiné pohledávky | G68: 12 | H68: 12 | I68: 14 | J68: 26 | K68: 13 | L68: 4
C69: Krátkodobý finanční majetek | G69: =SUM(G70:G71) -> 0 | H69: =SUM(H70:H71) -> 0 | I69: 0 | J69: 0 | K69: 0 | L69: 0 | M69: 0
D70: Podíly - ovládaná a ovládající osoba
D71: Ostatní krátkodobý finanční majetek
C72: Peněžní prostředky | G72: =SUM(G73:G74) -> 8495 | H72: =SUM(H73:H74) -> 4895 | I72: 4456 | J72: 9322 | K72: 8523 | L72: 10936 | M72: 4406
D73: Peněžní prostředky v pokladně | G73: 38 | H73: 78 | I73: 54 | J73: 89 | K73: 71 | L73: 44 | M73: 39
D74: Peněžní prostředky na účtech | G74: 8457 | H74: 4817 | I74: 4402 | J74: 9233 | K74: 8452 | L74: 10892 | M74: 4367
B75: Časové rozlišení | G75: =SUM(G76:G78) -> 1606 | H75: =SUM(H76:H78) -> 3075 | I75: 2713 | J75: 1445 | K75: 1888 | L75: 1111 | M75: 166
D76: Náklady příštích období | G76: 1606 | H76: 3075 | I76: 2713 | J76: 1445 | K76: 1888 | L76: 1111 | M76: 166
D77: Komplexní náklady příštích období
D78: Příjmy příštích období
A79: Pasiva | G79: =G80+G102+G138 -> 15344 | H79: 14986 | I79: 14495 | J79: 19833 | K79: 15536 | L79: 14635 | M79: 16670
B80: Vlastní kapitál | G80: =G81+G85+G93+G96+G101+G100 -> 6954 | H80: =H81+H85+H93+H96+H101+H100 -> 8322 | I80: 7452 | J80: 10011 | K80: 8645 | L80: 10112 | M80: 7128
C81: Základní kapitál | G81: =SUM(G82:G84) -> 300 | H81: 300 | I81: 300 | J81: 300 | K81: 300 | L81: 300 | M81: 300
D82: Základní kapitál | G82: 300 | H82: 300 | I82: 300 | J82: 300 | K82: 300 | L82: 300 | M82: 300
D83: Vlastní podíly
D84: Změny základního kapitálu
C85: Ážio a kapitálové fondy | G85: =G86+G87 -> 893 | H85: =H86+H87 -> 893 | I85: 893 | J85: 893 | K85: 893 | L85: 893 | M85: 893
D86: Ážio
D87: Kapitálové fondy | G87: =SUM(G88:G92) -> 893 | H87: =SUM(H88:H92) -> 893 | I87: 893 | J87: 893 | K87: 893 | L87: 893 | M87: 893
E88: Ostatní kapitálové fondy | G88: 893 | H88: 893 | I88: 893 | J88: 893 | K88: 893 | L88: 893 | M88: 893
E89: Oceňovací rozdíly z přeceňění majetku a závazků
E90: Oceňovací rozdíly z přecenění při přeměnách obchodních korporací
E91: Rozdíly z přeměn obchodních korporací
E92: Rozdíly z ocenění při přeměnách obchodních korporací
C93: Fondy ze zisku | G93: =SUM(G94:G95) -> 30 | H93: 30 | I93: 30 | J93: 30 | K93: 30 | L93: 30 | M93: 30
D94: Ostatní rezervní fondy | G94: 30 | H94: 30 | I94: 30 | J94: 30 | K94: 30 | L94: 30 | M94: 30
D95: Statutární a ostatní fondy
C96: Výsledek hospodaření minulých let | G96: =SUM(G97:G99) -> 3530 | H96: =SUM(H97:H99) -> 3630 | I96: 4879 | J96: 4983 | K96: 4588 | L96: 5322 | M96: 8889
D97: Nerozdělený zisk minulých let | G97: 3530 | H97: 3630 | I97: 4879 | J97: 4983 | K97: 4588 | L97: 5322 | M97: 8889
D98: Neuhrazená ztráta minulých let
D99: Jiný výsledek hospodaření minulých let
C100: Výsledek hospodaření běžného účetního období | G100: 2201 | H100: 3469 | I100: 1350 | J100: 3805 | K100: 2834 | L100: 3567 | M100: -2984
C101: Rozhodnuto o zálohové výplatě podílu na zisku
B102: Cizí kapitál | G102: =G103+G108 -> 4317 | H102: =H103+H108 -> 3859 | I102: 4925 | J102: 5377 | K102: 2887 | L102: 2243 | M102: 7491
C103: Rezervy | G103: =SUM(G104:G107) -> 0 | H103: =SUM(H104:H107) -> 0 | I103: 0 | J103: 0 | K103: 0 | L103: 0 | M103: 106
D104: Rezerva na důchody a podobné závazky
D105: Rezerva na daň z příjmu
D106: Rezervy podle zvláštních právních předpisů
D107: Ostatní rezervy | M107: 106
C108: Závazky | G108: =G109+G122 -> 4317 | H108: =H109+H122 -> 3859 | I108: 4925 | J108: 5377 | K108: 2887 | L108: 2243 | M108: 7385
D109: Dlouhodobé závazky | G109: =SUM(G110:G118) -> 0 | H109: 0 | I109: 0 | J109: 0 | K109: 0 | L109: 0 | M109: 0
E110: Vydané dluhopisy
E111: Závazky k úvěrovým institucím
E112: Dlouhodobé přijaté zálohy
E113: Závazky z obchodních vztahů
E114: Dlouhodobé směnky k úhradě
E115: Závazky - ovládaná nebo ovládající osoba
E116: Závazky - podstatný vliv
E117: Odložený daňový závazek
E118: Závazky - ostatní | G118: =SUM(G119:G121) -> 0 | H118: 0 | I118: 0 | J118: 0 | K118: 0 | L118: 0 | M118: 0
F119: Závazky ke společníkům
F120: Dohadné účty pasivní
F121: Jiné závazky
D122: Krátkodobé závazky | G122: =SUM(G123:G130) -> 4317 | H122: 3859 | I122: 4925 | J122: 5377 | K122: 2887 | L122: 2243 | M122: 7385
E123: Vydané dluhopisy
E124: Závazky k úvěrovým institucím | L124: 86 | M124: 34
E125: Krátkodobé přijaté zálohy
E126: Závazky z obchodních vztahů | G126: 874 | H126: 1143 | I126: 668 | J126: 1867 | K126: 723 | L126: 223 | M126: 2887 | O126: =M126-L126 -> 2664
E127: Krátkodobé směnky k úhradě
E128: Závazky - ovládaná a ovládající osoba
E129: Závazky - podstatný vliv
E130: Závazky - ostatní | G130: =SUM(G131:G137) -> 3443 | H130: =SUM(H131:H137) -> 2716 | I130: 4257 | J130: 3510 | K130: 2164 | L130: 1934 | M130: 4464
F131: Závazky ke společníkům | I131: 1887 | K131: 30
F132: Krátkodobé finanční výpomoci
F133: Závazky k zaměstnancům | G133: 700 | H133: 545 | I133: 626 | J133: 752 | K133: 598 | L133: 683 | M133: 834
F134: Závazky ze sociálního zabezpečení a zdravotního pojištění | G134: 462 | H134: 389 | I134: 421 | J134: 525 | K134: 423 | L134: 442
F135: Stát - daňové závazky a dotace | G135: 1924 | H135: 1125 | I135: 1312 | J135: 2209 | K135: 1088 | L135: 781 | M135: 639
F136: Dahodné účty pasivní | G136: 357 | H136: 657 | I136: 11 | J136: 24 | K136: 25 | L136: 28 | M136: 2983
F137: Jiné závazky | M137: 8
B138: Časové rozlišení | G138: =SUM(G139:G140) -> 4073 | H138: 2805 | I138: 2118 | J138: 4445 | K138: 4004 | L138: 2280 | M138: 2051
D139: Výdaje příštích období
D140: Výnosy příštích období | G140: 4073 | H140: 2805 | I140: 2118 | J140: 4445 | K140: 4004 | L140: 2280 | M140: 2051

Sheet Výkaz zisků a ztrát
A1: Výkaz zisku a ztrát (1.1.2010 - 30.6.2018) | D1: 2010 | E1: 2011 | F1: 2012 | G1: 2013 | H1: 2014 | I1: 2015 | J1: 2016- 30.6.2017
B2: Tžby za prodej vlastních výrobků a služeb | D2: 17699 | E2: 22020 | F2: 19480 | G2: 23651 | H2: 20991 | I2: 22836 | J2: 36766
B3: Tržby za prodej zboží | D3: 11242 | E3: 3737 | F3: 9240 | G3: 1796 | H3: 1717 | I3: 0 | J3: 233
B4: Výkonová spotřeba | D4: =SUM(D5:D7) -> 16997 | E4: 12156 | F4: 17232 | G4: 10274 | H4: 9441 | I4: 7077 | J4: 14251
C5: Náklady vynaložené na prodané zbpží | D5: 8586 | E5: 2696 | F5: 8099 | G5: 1469 | H5: 1183 | J5: 147
C6: Spotřeba materiálu a energie | D6: 579 | E6: 645 | F6: 592 | G6: 452 | H6: 432 | I6: 429 | J6: 1604
C7: Služby | D7: 7832 | E7: 8815 | F7: 8541 | G7: 8353 | H7: 7826 | I7: 6648 | J7: 12500
B8: Změna stavu zásob vlastních činností | D8: 0 | E8: 0 | F8: 0 | G8: 0 | H8: 317 | I8: -83 | J8: -234
B9: Aktivace | D9: 0 | E9: 20 | F9: 0 | G9: 0 | H9: 0 | I9: 0 | J9: 0
B10: Osobní náklady | D10: =SUM(D11:D13) -> 8426 | E10: 8728 | F10: 9270 | G10: 9360 | H10: 9565 | I10: 10860 | J10: 25203
C11: Mzdové náklady | D11: 6077 | E11: 6267 | F11: 6633 | G11: 6692 | H11: 6855 | I11: 7866 | J11: 18362
C12: Náklady na sociální zabezpečení a zdravotní pojištění | D12: 2229 | E12: 2344 | F12: 2505 | G12: 2542 | H12: 2588 | I12: 2877 | J12: 6610
C13: Sociální náklady | D13: 120 | E13: 117 | F13: 132 | G13: 126 | H13: 122 | I13: 117 | J13: 231
B14: Úpravy hodnot v provozní oblasti | D14: =SUM(D15:D17) -> 274 | E14: 270 | F14: 294 | G14: 538 | H14: 293 | I14: 268 | J14: 393
C15: Úpravy hodnot dlouhodobého nehmotného a hmotného majetku | D15: 274 | E15: 270 | F15: 294 | G15: 538 | H15: 293 | I15: 268 | J15: 393
C16: Úpravy hodnot zásob
C17: Úpravy hodnot pohledávek
B18: Ostatní provozní výnosy | D18: =SUM(D19:D21) -> 125 | E18: 79 | F18: 287 | G18: 145 | H18: 17 | I18: 549 | J18: 532
C19: Tržby z prodeje dlouhodobého majetku | E19: 22 | I19: 299 | J19: 35
C20: Tržby z prodeje majetku
C21: Jiné provozní výnosy | D21: 125 | E21: 57 | F21: 287 | G21: 145 | H21: 17 | I21: 250 | J21: 497
B22: Ostatní provozní náklady | D22: =SUM(D23:D26) -> 272 | E22: 225 | F22: 479 | G22: 787 | H22: 221 | I22: 577 | J22: 365
C23: Zůstatková cena prodaného dlouhodobého majetku | G23: 490 | I23: 391
C24: Daně a poplatky | D24: 36 | E24: 51 | F24: 34 | G24: 62 | H24: 35 | I24: 37 | J24: 54
C25: Změna stavu rezerv a opravných položek v provozní oblasti a komplexních nákladů příštích období | J25: 106
C26: Jiné provozní náklady | D26: 236 | E26: 174 | F26: 445 | G26: 235 | H26: 186 | I26: 149 | J26: 205
A27: Provozní výsledek hospodaření | D27: =D2+D3-D4+D8+D9-D10-D15+D18-D22 -> 3097 | E27: 4477 | F27: 1732 | G27: 4633 | H27: 3522 | I27: 4520 | J27: -2915
B28: Výnosy z dlouhodobého finančního majetku - podíly | D28: =SUM(D29:D30) -> 0 | E28: =SUM(E29:E30) -> 0 | F28: 0 | G28: 0 | H28: 0 | I28: 0 | J28: 0
C29: Výnosy z podílů - ovládaná a ovládající osoba
C30: Ostatní výnosy z podílů
B31: Náklady vynaložené na prodané podíly | D31: 0 | E31: 0 | F31: 0 | G31: 0 | H31: 0 | I31: 0 | J31: 0
B32: Výnosy z ostatního dlouhodobého finančního majetku | D32: =SUM(D33:D34) -> 0 | E32: =SUM(E33:E34) -> 0 | F32: 0 | G32: 0 | H32: 0 | I32: 0 | J32: 0
C33: Výnosy z ostatního dlouhodobého finančního majetku
C34: Ostaní výnosy z ostatního dlouhodobého finančního majetku
B35: Náklady související s ostatním dlouhodobým finančním majetkem | D35: 0 | E35: 0 | F35: 0 | G35: 0 | H35: 0 | I35: 0 | J35: 0
B36: Výnosové úroky a podobné výnosy | D36: =SUM(D37:D38) -> 1 | E36: =SUM(E37:E38) -> 1 | F36: 1 | G36: 0 | H36: 0 | I36: 0 | J36: 0
C37: Výnosové úroky a podobné výnosy - ovládaná nebo ovládající osoba
C38: Ostatní výnosové úroky a podobné výnosy | D38: 1 | E38: 1 | F38: 1
B39: Úpravy hodnot a rezervy ve finanční oblasti | D39: 0 | E39: 0 | F39: 0 | G39: 0 | H39: 0 | I39: 0 | J39: 0
B40: Nákladové úroky a podobné náklady | D40: =SUM(D41:D42) -> 4 | E40: =SUM(E41:E42) -> 23 | F40: 8 | G40: 0 | H40: 0 | I40: 0 | J40: 0
C41: Nákladové úroky a podobné náklady - ovládaná nebo ovládající osoba
C42: Ostatní nákladové úroky a podobné náklady | D42: 4 | E42: 23 | F42: 8
B43: Ostatní finanční výnosy | D43: 245 | E43: 176 | F43: 275 | G43: 196 | H43: 99 | I43: 52 | J43: 278
B44: Ostatní finanční náklady | D44: 607 | E44: 354 | F44: 250 | G44: 111 | H44: 74 | I44: 87 | J44: 347
A45: Finanční výsledek hospodaření | D45: =D28+D32+D36+D43-D31-D35-D40-D44 -> -365 | E45: =E28+E32+E36+E43-E31-E35-E40-E44 -> -200 | F45: 18 | G45: 85 | H45: 25 | I45: -35 | J45: -69
A46: Výsledek hospodaření před zdaněním | D46: =D27+D45 -> 2732 | E46: =E27+E45 -> 4277 | F46: 1750 | G46: 4718 | H46: 3547 | I46: 4485 | J46: -2984
B47: Daň z příjmu | D47: =SUM(D48:D49) -> 531 | E47: =SUM(E48:E49) -> 808 | F47: 400 | G47: 913 | H47: 713 | I47: 918 | J47: 0
C48: Splatná | D48: 531 | E48: 808 | F48: 400 | G48: 913 | H48: 713 | I48: 918 | J48: 0
C49: Odložená
A50: Výsledek hospodaření po zdanění | D50: =D46-D47 -> 2201 | E50: =E46-E47 -> 3469 | F50: 1350 | G50: 3805 | H50: 2834 | I50: 3567 | J50: -2984
B51: Převod podílu na výsledku hospodaření společníkům | D51: 0 | E51: 0 | F51: 0 | G51: 0 | H51: 0 | I51: 0 | J51: 0
A52: Výsledek hospodaření za účetní období | D52: =D50-D51 -> 2201 | E52: =E50-E51 -> 3469 | F52: 1350 | G52: 3805 | H52: 2834 | I52: 3567 | J52: -2984
A53: Čistý obrat za účetní období | D53: =D2+D3+D18+D28+D32+D36+D43 -> 29312 | E53: =E2+E3+E18+E28+E32+E36+E43 -> 26013 | F53: 29283 | G53: 25788 | H53: 22824 | I53: 23437 | J53: 37809
A55: Celkové výnosy | D55: =D53 -> 29312 | E55: =E53 -> 26013 | F55: 29283 | G55: 25788 | H55: 22824 | I55: 23437 | J55: 37809
A56: Celkové náklady | D56: =D4-D8+D9+D10+D14+D22+D31+D35+D39+D40+D44 -> 26580 | E56: 21776 | F56: 27533 | G56: 21070 | H56: =H4+H8+H9+H10+H14+H22+H31+H35+H39+H40+H44 -> 19911 | I56: 18952 | J56: 40793
D57: =D55-D56-D52-D47 -> 0 | E57: =E55-E56-E52-E47 -> -40 | F57: 0 | G57: 0 | H57: =H55-H56-H52 -> 79 | I57: 0 | J57: 0
I86: 4712900 | J86: 5049900
I88: =2/3*I86+1/3*J86 -> 4825233.333

Sheet Horizontální a vertikální anal.
A2: Aktiva | B2: 2010 | C2: 2011 | D2: 2012 | E2: 2013 | F2: 2014 | G2: 2015 | H2: 2016-2017 | K2: Pasiva | L2: 2010 | M2: 2011 | N2: 2012 | O2: 2013 | P2: 2014 | Q2: 2015 | R2: 2016-2017 | U2: Hospodářský výsledek | V2: 2010 | W2: 2011 | X2: 2012 | Y2: 2013 | Z2: 2014 | AA2: 2015 | AB2: 2016-2017
A3: Aktiva celkem | B3: =Rozvaha!G2 -> 15344 | C3: =Rozvaha!H2 -> 14986 | D3: =Rozvaha!I2 -> 14495 | E3: =Rozvaha!J2 -> 19833 | F3: =Rozvaha!K2 -> 15536 | G3: =Rozvaha!L2 -> 14635 | H3: =Rozvaha!M2 -> 16670 | K3: Pasiva celkem | L3: =Rozvaha!G79 -> 15344 | M3: =Rozvaha!H79 -> 14986 | N3: =Rozvaha!I79 -> 14495 | O3: =Rozvaha!J79 -> 19833 | P3: =Rozvaha!K79 -> 15536 | Q3: =Rozvaha!L79 -> 14635 | R3: =Rozvaha!M79 -> 16670 | U3: Celkové výnosy | V3: ='Výkaz zisků a ztrát'!D55 -> 29312 | W3: ='Výkaz zisků a ztrát'!E55 -> 26013 | X3: ='Výkaz zisků a ztrát'!F55 -> 29283 | Y3: ='Výkaz zisků a ztrát'!G55 -> 25788 | Z3: ='Výkaz zisků a ztrát'!H55 -> 22824 | AA3: ='Výkaz zisků a ztrát'!I55 -> 23437 | AB3: ='Výkaz zisků a ztrát'!J55 -> 37809
A4: Absolutní změna ukazatelů | C4: =C3-B3 -> -358 | D4: -491 | E4: 5338 | F4: -4297 | G4: -901 | H4: 2035 | K4: Absolutní změna ukazatelů | M4: =M3-L3 -> -358 | N4: -491 | O4: 5338 | P4: -4297 | Q4: -901 | R4: 2035 | U4: Absolutní změna ukazatelů | W4: =W3-V3 -> -3299 | X4: 3270 | Y4: -3495 | Z4: -2964 | AA4: 613 | AB4: 14372
A5: Procentuální změna | C5: =C4/B3 -> -0.02333159541 | D5: -0.03276391299 | E5: 0.3682649189 | F5: -0.2166591035 | G5: -0.05799433574 | H5: 0.1390502221 | K5: Procentuální změna | M5: =M4/L3 -> -0.02333159541 | N5: -0.03276391299 | O5: 0.3682649189 | P5: -0.2166591035 | Q5: -0.05799433574 | R5: 0.1390502221 | U5: Procentuální změna | W5: =W4/V3 -> -0.112547762 | X5: 0.1257063776 | Y5: -0.1193525254 | Z5: -0.1149371801 | AA5: 0.02685769366 | AB5: 0.6132184153
A6: Dlouhodobý majetek | B6: =Rozvaha!G4 -> 977 | C6: =Rozvaha!H4 -> 1498 | D6: =Rozvaha!I4 -> 2233 | E6: =Rozvaha!J4 -> 1204 | F6: =Rozvaha!K4 -> 911 | G6: =Rozvaha!L4 -> 390 | H6: =Rozvaha!M4 -> 469 | K6: Vlastní kapitál | L6: =Rozvaha!G80 -> 6954 | M6: =Rozvaha!H80 -> 8322 | N6: =Rozvaha!I80 -> 7452 | O6: =Rozvaha!J80 -> 10011 | P6: =Rozvaha!K80 -> 8645 | Q6: =Rozvaha!L80 -> 10112 | R6: =Rozvaha!M80 -> 7128 | U6: Celkové náklady | V6: ='Výkaz zisků a ztrát'!D56 -> 26580 | W6: ='Výkaz zisků a ztrát'!E56 -> 21776 | X6: ='Výkaz zisků a ztrát'!F56 -> 27533 | Y6: ='Výkaz zisků a ztrát'!G56 -> 21070 | Z6: ='Výkaz zisků a ztrát'!H56 -> 19911 | AA6: ='Výkaz zisků a ztrát'!I56 -> 18952 | AB6: ='Výkaz zisků a ztrát'!J56 -> 40793
A7: Absolutní změna ukazatelů | C7: =C6-B6 -> 521 | D7: 735 | E7: -1029 | F7: -293 | G7: -521 | H7: 79 | K7: Absolutní změna ukazatelů | M7: =M6-L6 -> 1368 | N7: -870 | O7: 2559 | P7: -1366 | Q7: 1467 | R7: -2984 | U7: Absolutní změna ukazatelů | W7: =W6-V6 -> -4804 | X7: 5757 | Y7: -6463 | Z7: -1159 | AA7: -959 | AB7: 21841
A8: Procentuální změna | C8: =C7/B6 -> 0.5332650972 | D8: 0.4906542056 | E8: -0.460815047 | F8: -0.2433554817 | G8: -0.5718990121 | H8: 0.2025641026 | K8: Procentuální změna | M8: =M7/L6 -> 0.1967213115 | N8: -0.1045421774 | O8: 0.3433977456 | P8: -0.1364499051 | Q8: 0.1696934644 | R8: -0.2950949367 | U8: Procentuální změna | W8: =W7/V6 -> -0.1807373965 | X8: 0.2643736223 | Y8: -0.234736498 | Z8: -0.05500711913 | AA8: -0.04816433127 | AB8: 1.152437737
A9: Oběžná aktiva | B9: =Rozvaha!G38 -> 12761 | C9: =Rozvaha!H38 -> 10413 | D9: =Rozvaha!I38 -> 9549 | E9: =Rozvaha!J38 -> 17184 | F9: =Rozvaha!K38 -> 12737 | G9: =Rozvaha!L38 -> 13134 | H9: =Rozvaha!M38 -> 16035 | K9: Cizí zdroje | L9: =Rozvaha!G102 -> 4317 | M9: =Rozvaha!H102 -> 3859 | N9: =Rozvaha!I102 -> 4925 | O9: =Rozvaha!J102 -> 5377 | P9: =Rozvaha!K102 -> 2887 | Q9: =Rozvaha!L102 -> 2243 | R9: =Rozvaha!M102 -> 7491 | U9: Výsledek hospodaření za účetní období | V9: ='Výkaz zisků a ztrát'!D50 -> 2201 | W9: ='Výkaz zisků a ztrát'!E50 -> 3469 | X9: ='Výkaz zisků a ztrát'!F50 -> 1350 | Y9: ='Výkaz zisků a ztrát'!G50 -> 3805 | Z9: ='Výkaz zisků a ztrát'!H50 -> 2834 | AA9: ='Výkaz zisků a ztrát'!I50 -> 3567 | AB9: ='Výkaz zisků a ztrát'!J50 -> -2984
A10: Absolutní změna ukazatelů | C10: =C9-B9 -> -2348 | D10: -864 | E10: 7635 | F10: -4447 | G10: 397 | H10: 2901 | K10: Absolutní změna ukazatelů | M10: =M9-L9 -> -458 | N10: 1066 | O10: 452 | P10: -2490 | Q10: -644 | R10: 5248 | U10: Absolutní změna ukazatelů | W10: =W9-V9 -> 1268 | X10: -2119 | Y10: 2455 | Z10: -971 | AA10: 733 | AB10: -6551
A11: Procentuální změna | C11: =C10/B9 -> -0.1839981193 | D11: -0.08297320657 | E11: 0.7995601634 | F11: -0.2587872439 | G11: 0.03116903509 | H11: 0.2208771128 | K11: Procentuální změna | M11: =M10/L9 -> -0.1060921937 | N11: 0.2762373672 | O11: 0.09177664975 | P11: -0.4630835038 | Q11: -0.2230689297 | R11: 2.339723584 | U11: Procentuální změna | W11: =W10/V9 -> 0.5761017719 | X11: -0.6108388585 | Y11: 1.818518519 | Z11: -0.2551905388 | AA11: 0.2586450247 | AB11: -1.836557331
A12: Časové rozlišení | B12: =Rozvaha!G75 -> 1606 | C12: =Rozvaha!H75 -> 3075 | D12: =Rozvaha!I75 -> 2713 | E12: =Rozvaha!J75 -> 1445 | F12: =Rozvaha!K75 -> 1888 | G12: =Rozvaha!L75 -> 1111 | H12: =Rozvaha!M75 -> 166 | K12: Časové rozlišení | L12: =Rozvaha!G138 -> 4073 | M12: =Rozvaha!H138 -> 2805 | N12: =Rozvaha!I138 -> 2118 | O12: =Rozvaha!J138 -> 4445 | P12: =Rozvaha!K138 -> 4004 | Q12: =Rozvaha!L138 -> 2280 | R12: =Rozvaha!M138 -> 2051 | U12: Provozní výsledek hospodaření | V12: ='Výkaz zisků a ztrát'!D27 -> 3097 | W12: ='Výkaz zisků a ztrát'!E27 -> 4477 | X12: ='Výkaz zisků a ztrát'!F27 -> 1732 | Y12: ='Výkaz zisků a ztrát'!G27 -> 4633 | Z12: ='Výkaz zisků a ztrát'!H27 -> 3522 | AA12: ='Výkaz zisků a ztrát'!I27 -> 4520 | AB12: ='Výkaz zisků a ztrát'!J27 -> -2915
A13: Absolutní změna ukazatelů | C13: =C12-B12 -> 1469 | D13: -362 | E13: -1268 | F13: 443 | G13: -777 | H13: -945 | K13: Absolutní změna ukazatelů | M13: =M12-L12 -> -1268 | N13: -687 | O13: 2327 | P13: -441 | Q13: -1724 | R13: -229 | U13: Absolutní změna ukazatelů | W13: =W12-V12 -> 1380 | X13: -2745 | Y13: 2901 | Z13: -1111 | AA13: 998 | AB13: -7435
A14: Procentuální změna | C14: =C13/B12 -> 0.9146948941 | D14: -0.1177235772 | E14: -0.4673792849 | F14: 0.3065743945 | G14: -0.4115466102 | H14: -0.8505850585 | K14: Procentuální změna | M14: =M13/L12 -> -0.3113184385 | N14: -0.2449197861 | O14: 1.098677998 | P14: -0.09921259843 | Q14: -0.4305694306 | R14: -0.1004385965 | U14: Procentuální změna | W14: =W13/V12 -> 0.4455925089 | X14: -0.613133795 | Y14: 1.674942263 | Z14: -0.2398014246 | AA14: 0.2833617263 | AB14: -1.644911504
U15: Finanční výsledek hospodaření | V15: ='Výkaz zisků a ztrát'!D45 -> -365 | W15: ='Výkaz zisků a ztrát'!E45 -> -200 | X15: ='Výkaz zisků a ztrát'!F45 -> 18 | Y15: ='Výkaz zisků a ztrát'!G45 -> 85 | Z15: ='Výkaz zisků a ztrát'!H45 -> 25 | AA15: ='Výkaz zisků a ztrát'!I45 -> -35 | AB15: ='Výkaz zisků a ztrát'!J45 -> -69
U16: Absolutní změna ukazatelů | W16: =W15-V15 -> 165 | X16: 218 | Y16: 67 | Z16: -60 | AA16: -60 | AB16: -34
U17: Procentuální změna | W17: =W16/V15 -> -0.4520547945 | X17: -1.09 | Y17: 3.722222222 | Z17: -0.7058823529 | AA17: -2.4 | AB17: 0.9714285714
A40: y
K69: Podíl hospodářského výsledku na pasivech | L69: =(Rozvaha!G96+Rozvaha!G100)/Rozvaha!G79 -> 0.3735010428 | M69: =(Rozvaha!H96+Rozvaha!H100)/Rozvaha!H79 -> 0.4737087949 | N69: =(Rozvaha!I96+Rozvaha!I100)/Rozvaha!I79 -> 0.4297343912 | O69: =(Rozvaha!J96+Rozvaha!J100)/Rozvaha!J79 -> 0.443099884 | P69: =(Rozvaha!K96+Rozvaha!K100)/Rozvaha!K79 -> 0.4777291452 | Q69: =(Rozvaha!L96+Rozvaha!L100)/Rozvaha!L79 -> 0.6073795695 | R69: =(Rozvaha!M96+Rozvaha!M100)/Rozvaha!M79 -> 0.3542291542

Sheet Poměrová analýza
A2: Ukazatele likvidity | B2: 2010 | C2: 2011 | D2: 2012 | E2: 2013 | F2: 2014 | G2: 2015 | H2: 2016-2017 | K2: Ukazatel rentability | L2: 2010 | M2: 2011 | N2: 2012 | O2: 2013 | P2: 2014 | Q2: 2015 | R2: 2016-2017 | U2: Ukazatel aktivity | V2: 2010 | W2: 2011 | X2: 2012 | Y2: 2013 | Z2: 2014 | AA2: 2015 | AB2: 2016-2017 | AH2: Ukazatel zadluženosti | AI2: 2010 | AJ2: 2011 | AK2: 2012 | AL2: 2013 | AM2: 2014 | AN2: 2015 | AO2: 2016-2017
A3: Oběžná aktiva | B3: =Rozvaha!G38 -> 12761 | C3: =Rozvaha!H38 -> 10413 | D3: =Rozvaha!I38 -> 9549 | E3: =Rozvaha!J38 -> 17184 | F3: =Rozvaha!K38 -> 12737 | G3: =Rozvaha!L38 -> 13134 | H3: =Rozvaha!M38 -> 16035 | K3: Zisk před zdaněním | L3: ='Výkaz zisků a ztrát'!D46 -> 2732 | M3: ='Výkaz zisků a ztrát'!E46 -> 4277 | N3: ='Výkaz zisků a ztrát'!F46 -> 1750 | O3: ='Výkaz zisků a ztrát'!G46 -> 4718 | P3: ='Výkaz zisků a ztrát'!H46 -> 3547 | Q3: ='Výkaz zisků a ztrát'!I46 -> 4485 | R3: ='Výkaz zisků a ztrát'!J46 -> -2984 | U3: Roční tržby | V3: ='Výkaz zisků a ztrát'!D2+'Výkaz zisků a ztrát'!D3 -> 28941 | W3: ='Výkaz zisků a ztrát'!E2+'Výkaz zisků a ztrát'!E3 -> 25757 | X3: ='Výkaz zisků a ztrát'!F2+'Výkaz zisků a ztrát'!F3 -> 28720 | Y3: ='Výkaz zisků a ztrát'!G2+'Výkaz zisků a ztrát'!G3 -> 25447 | Z3: ='Výkaz zisků a ztrát'!H2+'Výkaz zisků a ztrát'!H3 -> 22708 | AA3: ='Výkaz zisků a ztrát'!I2+'Výkaz zisků a ztrát'!I3 -> 22836 | AB3: ='Výkaz zisků a ztrát'!J2+'Výkaz zisků a ztrát'!J3 -> 36999 | AH3: Celková aktiva | AI3: =Rozvaha!G2 -> 15344 | AJ3: =Rozvaha!H2 -> 14986 | AK3: =Rozvaha!I2 -> 14495 | AL3: =Rozvaha!J2 -> 19833 | AM3: =Rozvaha!K2 -> 15536 | AN3: =Rozvaha!L2 -> 14635 | AO3: =Rozvaha!M2 -> 16670
A4: Krátkodobý cizí kapitál | B4: =Rozvaha!G122 -> 4317 | C4: =Rozvaha!H122 -> 3859 | D4: =Rozvaha!I122 -> 4925 | E4: =Rozvaha!J122 -> 5377 | F4: =Rozvaha!K122 -> 2887 | G4: =Rozvaha!L122 -> 2243 | H4: =Rozvaha!M122 -> 7385 | K4: Zisk po zdanění | L4: ='Výkaz zisků a ztrát'!D50 -> 2201 | M4: ='Výkaz zisků a ztrát'!E50 -> 3469 | N4: ='Výkaz zisků a ztrát'!F50 -> 1350 | O4: ='Výkaz zisků a ztrát'!G50 -> 3805 | P4: ='Výkaz zisků a ztrát'!H50 -> 2834 | Q4: ='Výkaz zisků a ztrát'!I50 -> 3567 | R4: ='Výkaz zisků a ztrát'!J50 -> -2984 | U4: Celková aktiva | V4: =Rozvaha!G2 -> 15344 | W4: =Rozvaha!H2 -> 14986 | X4: =Rozvaha!I2 -> 14495 | Y4: =Rozvaha!J2 -> 19833 | Z4: =Rozvaha!K2 -> 15536 | AA4: =Rozvaha!L2 -> 14635 | AB4: =Rozvaha!M2 -> 16670 | AH4: Cizí kapitál | AI4: =Rozvaha!G102 -> 4317 | AJ4: =Rozvaha!H102 -> 3859 | AK4: =Rozvaha!I102 -> 4925 | AL4: =Rozvaha!J102 -> 5377 | AM4: =Rozvaha!K102 -> 2887 | AN4: =Rozvaha!L102 -> 2243 | AO4: =Rozvaha!M102 -> 7491
A5: Zásoby | B5: =Rozvaha!G39 -> 3 | C5: =Rozvaha!H39 -> 1538 | D5: =Rozvaha!I39 -> 99 | E5: =Rozvaha!J39 -> 840 | F5: =Rozvaha!K39 -> 317 | G5: =Rozvaha!L39 -> 234 | H5: =Rozvaha!M39 -> 0 | K5: Celková aktiva | L5: =Rozvaha!G2 -> 15344 | M5: =Rozvaha!H2 -> 14986 | N5: =Rozvaha!I2 -> 14495 | O5: =Rozvaha!J2 -> 19833 | P5: =Rozvaha!K2 -> 15536 | Q5: =Rozvaha!L2 -> 14635 | R5: =Rozvaha!M2 -> 16670 | U5: Dlouhodobý hmotný majetek | V5: =Rozvaha!G15 -> 977 | W5: =Rozvaha!H15 -> 1498 | X5: =Rozvaha!I15 -> 1497 | Y5: =Rozvaha!J15 -> 1204 | Z5: =Rozvaha!K15 -> 911 | AA5: =Rozvaha!L15 -> 390 | AB5: =Rozvaha!M15 -> 469 | AH5: Dlouhodobý cizí kapitál | AI5: =Rozvaha!G109 -> 0 | AJ5: =Rozvaha!H109 -> 0 | AK5: =Rozvaha!I109 -> 0 | AL5: =Rozvaha!J109 -> 0 | AM5: =Rozvaha!K109 -> 0 | AN5: =Rozvaha!L109 -> 0 | AO5: =Rozvaha!M109 -> 0
A6: Peněžní prostředky | B6: =Rozvaha!G72 -> 8495 | C6: =Rozvaha!H72 -> 4895 | D6: =Rozvaha!I72 -> 4456 | E6: =Rozvaha!J72 -> 9322 | F6: =Rozvaha!K72 -> 8523 | G6: =Rozvaha!L72 -> 10936 | H6: =Rozvaha!M72 -> 4406 | K6: Vlastní kapitál | L6: =Rozvaha!G80 -> 6954 | M6: =Rozvaha!H80 -> 8322 | N6: =Rozvaha!I80 -> 7452 | O6: =Rozvaha!J80 -> 10011 | P6: =Rozvaha!K80 -> 8645 | Q6: =Rozvaha!L80 -> 10112 | R6: =Rozvaha!M80 -> 7128 | U6: Krátkodobé závazky | V6: =Rozvaha!G122 -> 4317 | W6: =Rozvaha!H122 -> 3859 | X6: =Rozvaha!I122 -> 4925 | Y6: =Rozvaha!J122 -> 5377 | Z6: =Rozvaha!K122 -> 2887 | AA6: =Rozvaha!L122 -> 2243 | AB6: =Rozvaha!M122 -> 7385 | AH6: Krátkodobý cizí kapitál | AI6: =Rozvaha!G122 -> 4317 | AJ6: =Rozvaha!H122 -> 3859 | AK6: =Rozvaha!I122 -> 4925 | AL6: =Rozvaha!J122 -> 5377 | AM6: =Rozvaha!K122 -> 2887 | AN6: =Rozvaha!L122 -> 2243 | AO6: =Rozvaha!M122 -> 7385
A7: Celková (běžná) likvidita | B7: =B3/B4 -> 2.955987955 | C7: =C3/C4 -> 2.698367453 | D7: 1.938883249 | E7: 3.195834108 | F7: 4.411846207 | G7: 5.855550602 | H7: 2.171293162 | K7: Krátkodobé závazky | L7: =Rozvaha!G122 -> 4317 | M7: =Rozvaha!H122 -> 3859 | N7: =Rozvaha!I122 -> 4925 | O7: =Rozvaha!J122 -> 5377 | P7: =Rozvaha!K122 -> 2887 | Q7: =Rozvaha!L122 -> 2243 | R7: =Rozvaha!M122 -> 7385 | U7: Krátkodobé pohledávky | V7: =Rozvaha!G58 -> 4263 | W7: =Rozvaha!H58 -> 3980 | X7: =Rozvaha!I58 -> 4994 | Y7: =Rozvaha!J58 -> 7022 | Z7: =Rozvaha!K58 -> 3897 | AA7: =Rozvaha!L58 -> 1964 | AB7: =Rozvaha!M58 -> 11629 | AH7: Vlastní kapitál | AI7: =Rozvaha!G80 -> 6954 | AJ7: =Rozvaha!H80 -> 8322 | AK7: =Rozvaha!I80 -> 7452 | AL7: =Rozvaha!J80 -> 10011 | AM7: =Rozvaha!K80 -> 8645 | AN7: =Rozvaha!L80 -> 10112 | AO7: =Rozvaha!M80 -> 7128
A8: Pohotová likvidita | B8: =(B3-B5)/B4 -> 2.955293028 | C8: =(C3-C5)/C4 -> 2.299818606 | D8: 1.918781726 | E8: 3.039613167 | F8: 4.302043644 | G8: 5.751226037 | H8: 2.171293162 | K8: ROA | L8: =L3/L5 -> 0.1780500521 | M8: 0.2853997064 | N8: 0.1207312867 | O8: 0.237886351 | P8: 0.2283084449 | Q8: 0.3064571233 | R8: -0.1790041992 | U8: Dlouhodobé závazky | V8: =Rozvaha!G109 -> 0 | W8: =Rozvaha!H109 -> 0 | X8: =Rozvaha!I109 -> 0 | Y8: =Rozvaha!J109 -> 0 | Z8: =Rozvaha!K109 -> 0 | AA8: =Rozvaha!L109 -> 0 | AB8: =Rozvaha!M109 -> 0 | AH8: Zisk před zdaněním | AI8: ='Výkaz zisků a ztrát'!D46 -> 2732 | AJ8: ='Výkaz zisků a ztrát'!E46 -> 4277 | AK8: ='Výkaz zisků a ztrát'!F46 -> 1750 | AL8: ='Výkaz zisků a ztrát'!G46 -> 4718 | AM8: ='Výkaz zisků a ztrát'!H46 -> 3547 | AN8: ='Výkaz zisků a ztrát'!I46 -> 4485 | AO8: ='Výkaz zisků a ztrát'!J46 -> -2984
A9: Okamžitá likvidita | B9: =B6/B4 -> 1.967801714 | C9: =C6/C4 -> 1.268463332 | D9: 0.9047715736 | E9: 1.733680491 | F9: 2.952199515 | G9: 4.875613018 | H9: 0.5966147596 | K9: ROCE | L9: =L3/(L5-L7) -> 0.2477555092 | M9: 0.3843803361 | N9: 0.1828631139 | O9: 0.3263696735 | P9: 0.2804174243 | Q9: 0.3619270497 | R9: -0.3213785676 | U9: Dlouhodobé pohledávky | V9: =Rozvaha!G48 -> 0 | W9: =Rozvaha!H48 -> 0 | X9: =Rozvaha!I48 -> 0 | Y9: =Rozvaha!J48 -> 0 | Z9: =Rozvaha!K48 -> 0 | AA9: =Rozvaha!L48 -> 0 | AB9: =Rozvaha!M48 -> 0 | AH9: Nákladové úroky | AI9: ='Výkaz zisků a ztrát'!D40 -> 4 | AJ9: ='Výkaz zisků a ztrát'!E40 -> 23 | AK9: ='Výkaz zisků a ztrát'!F40 -> 8 | AL9: ='Výkaz zisků a ztrát'!G40 -> 0 | AM9: ='Výkaz zisků a ztrát'!H40 -> 0 | AN9: ='Výkaz zisků a ztrát'!I40 -> 0 | AO9: ='Výkaz zisků a ztrát'!J40 -> 0
A10: Čistý pracovní kapitál | B10: =(B3-B4)/1000 -> 8.444 | C10: =(C3-C4)/1000 -> 6.554 | D10: 4.624 | E10: 11.807 | F10: =(F3-F4)/1000 -> 9.85 | G10: 10.891 | H10: 8.65 | K10: ROE | L10: =L4/L6 -> 0.3165084843 | M10: =M4/M6 -> 0.4168469118 | N10: 0.1811594203 | O10: 0.3800819099 | P10: 0.3278195489 | Q10: 0.3527492089 | R10: -0.418630752 | U10: Aktiva | V10: =V$3/V4 -> 1.886144421 | W10: 1.718737488 | X10: 1.981372887 | Y10: 1.283063581 | Z10: 1.461637487 | AA10: 1.560368978 | AB10: 2.219496101 | AH10: Celková zadluženost | AI10: =AI4/AI$3 -> 0.2813477581 | AJ10: 0.2575070065 | AK10: 0.3397723353 | AL10: 0.2711138002 | AM10: 0.1858264676 | AN10: 0.1532627263 | AO10: 0.449370126
U11: Závazky | V11: =V$3/(V6+V8) -> 6.703961084 | W11: =W$3/(W6+W8) -> 6.67452708 | X11: 5.831472081 | Y11: 4.732564627 | Z11: 7.865604434 | AA11: 10.18100758 | AB11: 5.010020311 | AH11: Dlouhodobá zadluženost | AI11: =AI5/AI$3 -> 0 | AJ11: =AJ5/AJ$3 -> 0 | AK11: 0 | AL11: 0 | AM11: 0 | AN11: 0 | AO11: 0
U12: Pohledávky | V12: =V$3/(V7+V9) -> 6.78888107 | W12: =W$3/(W7+W9) -> 6.47160804 | X12: 5.750901081 | Y12: 3.623896326 | Z12: 5.827046446 | AA12: 11.62729124 | AB12: 3.181614928 | AH12: Krátkodobá zadluženost | AI12: =AI6/AI$3 -> 0.2813477581 | AJ12: =AJ6/AJ$3 -> 0.2575070065 | AK12: 0.3397723353 | AL12: 0.2711138002 | AM12: 0.1858264676 | AN12: 0.1532627263 | AO12: 0.4430113977
U13: Aktiva | V13: =V4/(V$3/365) -> 193.5164645 | W13: =W4/(W$3/365) -> 212.3651823 | X13: 184.2157033 | Y13: 284.4753802 | Z13: 249.7199225 | AA13: 233.9190314 | AB13: 164.4517419 | AH13: Míra samofinancování | AI13: =AI7/AI3 -> 0.4532064651 | AJ13: =AJ7/AJ3 -> 0.5553182971 | AK13: 0.5141083132 | AL13: 0.504764786 | AM13: 0.5564495366 | AN13: 0.6909463615 | AO13: 0.4275944811
U14: Závazky | V14: =V6/(V$3/365) -> 54.44542345 | W14: =W6/(W$3/365) -> 54.68552238 | X14: 62.59139972 | Y14: 77.1252014 | Z14: 46.40457108 | AA14: 35.85106849 | AB14: 72.85399605 | AH14: Finanční páka | AI14: =AI3/AI7 -> 2.206499856 | AJ14: =AJ3/AJ7 -> 1.800769046 | AK14: 1.945115405 | AL14: 1.981120767 | AM14: 1.797108155 | AN14: 1.447290348 | AO14: 2.338664422
U15: Pohledávky | V15: =V7/(V$3/365) -> 53.76438271 | W15: =W7/(W$3/365) -> 56.40020189 | X15: 63.46831476 | Y15: 100.7203207 | Z15: 62.63893782 | AA15: 31.39166229 | AB15: 114.7216141 | AH15: Úrokové krytí | AI15: =AI8/AI9 -> 683 | AJ15: =AJ8/AJ9 -> 185.9565217 | AK15: =AK8/AK9 -> 218.75 | AL15: x | AM15: x | AN15: x | AO15: x
J43: x;

Sheet Rozdělení aktiv
A1: Položka (v tisících Kč) | B1: 2010 | C1: 2011 | D1: 2012 | E1: 2013 | F1: 2014 | G1: 2015 | H1: 2016 / 2017
A2: Peněžní prostředky v pokladně | B2: =Rozvaha!G73 -> 38 | C2: =Rozvaha!H73 -> 78 | D2: =Rozvaha!I73 -> 54 | E2: =Rozvaha!J73 -> 89 | F2: =Rozvaha!K73 -> 71 | G2: =Rozvaha!L73 -> 44 | H2: =Rozvaha!M73 -> 39
A3: Peněžní prostředky na účtech | B3: =Rozvaha!G74 -> 8457 | C3: =Rozvaha!H74 -> 4817 | D3: =Rozvaha!I74 -> 4402 | E3: =Rozvaha!J74 -> 9233 | F3: =Rozvaha!K74 -> 8452 | G3: =Rozvaha!L74 -> 10892 | H3: =Rozvaha!M74 -> 4367
A4: Krátkodobé závazky | B4: =Rozvaha!G122 -> 4317 | C4: =Rozvaha!H122 -> 3859 | D4: =Rozvaha!I122 -> 4925 | E4: =Rozvaha!J122 -> 5377 | F4: =Rozvaha!K122 -> 2887 | G4: =Rozvaha!L122 -> 2243 | H4: =Rozvaha!M122 -> 7385
A5: Likvidita | B5: =(B2+B3)/B4 -> 1.967801714 | C5: =(C2+C3)/C4 -> 1.268463332 | D5: 0.9047715736 | E5: 1.733680491 | F5: 2.952199515 | G5: 4.875613018 | H5: 0.5966147596
A6: Ukazatel likvidity | B6: ='Poměrová analýza'!B9 -> 1.967801714 | C6: ='Poměrová analýza'!C9 -> 1.268463332 | D6: ='Poměrová analýza'!D9 -> 0.9047715736 | E6: ='Poměrová analýza'!E9 -> 1.733680491 | F6: ='Poměrová analýza'!F9 -> 2.952199515 | G6: ='Poměrová analýza'!G9 -> 4.875613018 | H6: ='Poměrová analýza'!H9 -> 0.5966147596
A7: Provozně nutné peněžní prostředky | B7: =B3+B2 -> 8495 | C7: =C3+C2 -> 4895 | D7: 4456 | E7: 9322 | F7: 8523 | G7: 10936 | H7: 4406
A9: Položka (v tisících Kč) | B9: 2010 | C9: 2011 | D9: 2012 | E9: 2013 | F9: 2014 | G9: 2015 | H9: 2016 / 2017
A10: Pohledávky za upsaný základní kapitál | B10: =Rozvaha!G3 -> 0 | C10: =Rozvaha!H3 -> 0 | D10: =Rozvaha!I3 -> 0 | E10: =Rozvaha!J3 -> 0 | F10: =Rozvaha!K3 -> 0 | G10: =Rozvaha!L3 -> 0 | H10: =Rozvaha!M3 -> 0
A11: Dlouhodobý nehmotný majetek | B11: =Rozvaha!G5 -> 0 | C11: =Rozvaha!H5 -> 0 | D11: =Rozvaha!I5 -> 736 | E11: =Rozvaha!J5 -> 0 | F11: =Rozvaha!K5 -> 0 | G11: =Rozvaha!L5 -> 0 | H11: =Rozvaha!M5 -> 0
A12: Dlouhodobý hmotný majetek | B12: =Rozvaha!G15 -> 977 | C12: =Rozvaha!H15 -> 1498 | D12: =Rozvaha!I15 -> 1497 | E12: =Rozvaha!J15 -> 1204 | F12: =Rozvaha!K15 -> 911 | G12: =Rozvaha!L15 -> 390 | H12: =Rozvaha!M15 -> 469
A13: Dlouhodobý majetek provozně nutný | B13: =SUM(B10:B12) -> 977 | C13: =SUM(C10:C12) -> 1498 | D13: 2233 | E13: 1204 | F13: 911 | G13: 390 | H13: 469
A14: Zásoby | B14: =Rozvaha!G39 -> 3 | C14: =Rozvaha!H39 -> 1538 | D14: =Rozvaha!I39 -> 99 | E14: =Rozvaha!J39 -> 840 | F14: =Rozvaha!K39 -> 317 | G14: =Rozvaha!L39 -> 234 | H14: =Rozvaha!M39 -> 0
A15: Pohledávky | B15: =Rozvaha!G47 -> 4263 | C15: =Rozvaha!H47 -> 3980 | D15: =Rozvaha!I47 -> 4994 | E15: =Rozvaha!J47 -> 7022 | F15: =Rozvaha!K47 -> 3897 | G15: =Rozvaha!L47 -> 1964 | H15: =Rozvaha!M47 -> 11629
A16: Provozně nutné peněžní prostředky | B16: =B7 -> 8495 | C16: =C7 -> 4895 | D16: 4456 | E16: 9322 | F16: 8523 | G16: 10936 | H16: 4406
A17: Ostatní aktiva | B17: =Rozvaha!G75 -> 1606 | C17: =Rozvaha!H75 -> 3075 | D17: =Rozvaha!I75 -> 2713 | E17: =Rozvaha!J75 -> 1445 | F17: =Rozvaha!K75 -> 1888 | G17: =Rozvaha!L75 -> 1111 | H17: =Rozvaha!M75 -> 166
A18: Krátkodobé závazky | B18: =Rozvaha!G122 -> 4317 | C18: =Rozvaha!H122 -> 3859 | D18: =Rozvaha!I122 -> 4925 | E18: =Rozvaha!J122 -> 5377 | F18: =Rozvaha!K122 -> 2887 | G18: =Rozvaha!L122 -> 2243 | H18: =Rozvaha!M122 -> 7385
A19: Ostatní pasiva | B19: =Rozvaha!G138 -> 4073 | C19: =Rozvaha!H138 -> 2805 | D19: =Rozvaha!I138 -> 2118 | E19: =Rozvaha!J138 -> 4445 | F19: =Rozvaha!K138 -> 4004 | G19: =Rozvaha!L138 -> 2280 | H19: =Rozvaha!M138 -> 2051
A20: Pracovní kapitál provozně nutný | B20: =B14+B15+B16+B17-B18-B19 -> 5977 | C20: =C14+C15+C16+C17-C18-C19 -> 6824 | D20: 5219 | E20: 8807 | F20: 7734 | G20: 9722 | H20: 6765
A21: Investovaný kapitál provozně nutný | B21: =B20+B13 -> 6954 | C21: =C20+C13 -> 8322 | D21: 7452 | E21: 10011 | F21: 8645 | G21: 10112 | H21: 7234
A23: Položka (v tisících Kč) | B23: 2010 | C23: 2011 | D23: 2012 | E23: 2013 | F23: 2014 | G23: 2015 | H23: 2016 / 2017
A24: Provozní výsledek hospodaření za období | B24: ='Výkaz zisků a ztrát'!D27 -> 3097 | C24: ='Výkaz zisků a ztrát'!E27 -> 4477 | D24: ='Výkaz zisků a ztrát'!F27 -> 1732 | E24: ='Výkaz zisků a ztrát'!G27 -> 4633 | F24: ='Výkaz zisků a ztrát'!H27 -> 3522 | G24: ='Výkaz zisků a ztrát'!I27 -> 4520 | H24: ='Výkaz zisků a ztrát'!J27 -> -2915
A25: Tržby z prodeje dlouhodobého majetku a materiálu | B25: ='Výkaz zisků a ztrát'!D19+'Výkaz zisků a ztrát'!D20 -> 0 | C25: ='Výkaz zisků a ztrát'!E19+'Výkaz zisků a ztrát'!E20 -> 22 | D25: ='Výkaz zisků a ztrát'!F19+'Výkaz zisků a ztrát'!F20 -> 0 | E25: ='Výkaz zisků a ztrát'!G19+'Výkaz zisků a ztrát'!G20 -> 0 | F25: ='Výkaz zisků a ztrát'!H19+'Výkaz zisků a ztrát'!H20 -> 0 | G25: ='Výkaz zisků a ztrát'!I19+'Výkaz zisků a ztrát'!I20 -> 299 | H25: ='Výkaz zisků a ztrát'!J19+'Výkaz zisků a ztrát'!J20 -> 35
A26: Zůstatková cena prodaného dlouhodobého majetku a materiálu | B26: ='Výkaz zisků a ztrát'!D23 -> 0 | C26: ='Výkaz zisků a ztrát'!E23 -> 0 | D26: ='Výkaz zisků a ztrát'!F23 -> 0 | E26: ='Výkaz zisků a ztrát'!G23 -> 490 | F26: ='Výkaz zisků a ztrát'!H23 -> 0 | G26: ='Výkaz zisků a ztrát'!I23 -> 391 | H26: ='Výkaz zisků a ztrát'!J23 -> 0
A27: Zisk z prodaného dlouhodobého majetku a materiálu | B27: =B25-B26 -> 0 | C27: =C25-C26 -> 22 | D27: 0 | E27: -490 | F27: 0 | G27: -92 | H27: 35
A28: Korigovaný provozní výsledek hospodaření | B28: =B24-B27 -> 3097 | C28: =C24-C27 -> 4455 | D28: 1732 | E28: 5123 | F28: 3522 | G28: 4612 | H28: -2950

Sheet Predikce hodnot rozvahy (hidden)
G1: 2010 | H1: 2011 | I1: 2012 | J1: 2013 | K1: 2014 | L1: 2015 | M1: 2016 / 2017 | N1: 2017 / 2018 | O1: 2018 / 2019 | P1: 2019 / 2020
G2: 1 | H2: 2 | I2: 3 | J2: 4 | K2: 5 | L2: 6 | M2: 7 | N2: 8 | O2: 9 | P2: 10
A3: Aktiva | G3: =G4+G5+G39+G76 -> 15344 | H3: 14986 | I3: 14495 | J3: 19833 | K3: 15536 | L3: 14635 | M3: 16670 | N3: 18567 | O3: 19814 | P3: 20614
B4: Pohledávky za upsaný základní kapitál | G4: 0 | H4: 0 | I4: 0 | J4: 0 | K4: 0 | L4: 0 | M4: 0 | N4: 0 | O4: 0 | P4: 0
B5: Dlouhodobý majetek | G5: =G6+G16+G29 -> 977 | H5: 1498 | I5: 2233 | J5: 1204 | K5: 911 | L5: 390 | M5: 469 | N5: 496 | O5: 372 | P5: 306
C6: Dlouhodobý nehmotný majetek | G6: =G7+G8+G11+G12+G13 -> 0 | H6: =H7+H8+H11+H12+H13 -> 0 | I6: 736 | J6: 0 | K6: 0 | L6: 0 | M6: 0 | N6: 0 | O6: 0 | P6: 0
D7: Nehmotné výsledky výzkumu a vývoje
D8: Ocenitelná práva | G8: =SUM(G9:G10) -> 0 | H8: 0 | I8: 736 | J8: 0 | K8: 0 | L8: 0 | M8: 0 | N8: 0 | O8: 0 | P8: 0
E9: Software | I9: 736
E10: Ocenitelná práva
D11: Goodwill
D12: Ostatní dlouhodobý nehmotný majetek
D13: Poskytnuté zálohy na dlouhodobý nehmotný majetek a nedokončený dlouhodobý nehmotný majetek
E14: Poskytnuté zálohy na dlouhodobý nehmotný majetek
E15: Nedokončený dlouhodobý nehmotný majetek
C16: Dlouhodobý hmotný majetek | G16: =G17+G20+G22+G26 -> 977 | H16: =H17+H20+H22+H26 -> 1498 | I16: 1497 | J16: 1204 | K16: 911 | L16: 390 | M16: 469 | N16: 496 | O16: 372 | P16: 306
D17: Pozemky a stavby | G17: =SUM(G18:G19) -> 452 | H17: =SUM(H18:H19) -> 437 | I17: 422 | J17: 407 | K17: 392 | L17: 0 | M17: 0 | N17: 0 | O17: 0 | P17: 0
E18: Pozemky | G18: 108 | H18: 108 | I18: 108 | J18: 108 | K18: 108 | L18: 0 | M18: 0 | N18: 0 | O18: 0 | P18: 0
E19: Stavby | G19: 344 | H19: 329 | I19: 314 | J19: 299 | K19: 284 | L19: 0 | M19: 0 | N19: 0 | O19: 0 | P19: 0
D20: Hmotné movité věci a jejich soubory | G20: 525 | H20: 1061 | I20: 1075 | J20: 797 | K20: 519 | L20: 390 | M20: 469 | N20: 496 | O20: 372 | P20: 306
D21: Oceňovací rozdíl k nabytému majetku
D22: Ostatní dlouhodobý hmotný majetek
E23: Pěstitelské celky trvalých porostů
E24: Dospělá zvířata a jejich skupiny
E25: Jiný dlouhodobý hmotný majetek
D26: Poskytnuté zálohy na dlouhodobý hmotný majetek a nedokončený dlouhodobý hmotný majetek
E27: Poskytnuté zálohy na dlouhodobý hmotný majetek
E28: Nedokončený dlouhodobý hmotný majetek
C29: Dlouhodobý finanční majetek | G29: =SUM(G30:G36) -> 0 | H29: =SUM(H30:H36) -> 0 | I29: 0 | J29: 0 | K29: 0 | L29: 0 | M29: 0 | N29: 0 | O29: 0 | P29: 0
D30: Podíly - ovládaná nebo ovládající osoba
D31: Zápůjčky a úvěry - ovládající a řídící osoba, podstatný vliv
D32: Podíly - podstatný vliv
D33: Zápůjčky a úvěry - podstatný vliv
D34: Ostatní dlouhodobé cenné papíry a podíly
D35: Zápůjčky a úvěry - ostatní
D36: Ostatní dlouhodobý finanční majetek
E37: Jiný dlouhodobý finanční majetek
E38: Poskytnuté zálohy na dlouhodobý finanční majetek
B39: Oběžná aktiva | G39: =G40+G48+G70+G73 -> 12761 | H39: =H40+H48+H70+H73 -> 10413 | I39: 9549 | J39: 17184 | K39: 12737 | L39: 13134 | M39: 16035 | N39: =N40+N48+N70+N73 -> 16652 | O39: =O40+O48+O70+O73 -> 17029 | P39: =P40+P48+P70+P73 -> 17320
C40: Zásoby | G40: =G41+G42+G43+G46+G47 -> 3 | H40: =H41+H42+H43+H46+H47 -> 1538 | I40: 99 | J40: 840 | K40: 317 | L40: 234 | M40: 0 | N40: =N41+N42+N43+N46+N47 -> 0 | O40: =O41+O42+O43+O46+O47 -> 0 | P40: =P41+P42+P43+P46+P47 -> 0
D41: Materiál
D42: Nedokončená výroba a polotovary | G42: 0 | H42: 272 | I42: 48 | J42: 840 | K42: 317 | L42: 234 | M42: 0 | N42: 0 | O42: 0 | P42: 0
D43: Výrobky | G43: =SUM(G44:G45) -> 3 | H43: =SUM(H44:H45) -> 1266 | I43: 51 | J43: 0 | K43: 0 | L43: 0 | M43: 0 | N43: 0 | O43: 0 | P43: 0
E44: Výrobky
E45: Zboží | G45: 3 | H45: 1266 | I45: 51
D46: Mladá a ostatní zvířata a jejich skupiny
D47: Poskytnuté zálohy na zásoby
C48: Pohledávky | G48: =G49+G59 -> 4263 | H48: =H49+H59 -> 3980 | I48: 4994 | J48: 7022 | K48: 3897 | L48: 1964 | M48: 11629 | N48: 7817 | O48: 7963 | P48: 9214
D49: Dlouhodobé pohledávky | G49: =SUM(G50:G54) -> 0 | H49: =SUM(H50:H54) -> 0 | I49: 0 | J49: 0 | K49: 0 | L49: 0 | M49: 0 | N49: 0 | O49: 0 | P49: 0
E50: Pohledávky z obchodních vztahů
E51: Pohledávky - ovládaná nebo ovládající osoba
E52: Pohledávky - podstatný vliv
E53: Odložená daňová pohledávka
E54: Poledávky - ostatní | G54: =SUM(G55:G58) -> 0 | H54: =SUM(H55:H58) -> 0 | I54: 0 | J54: 0 | K54: 0 | L54: 0 | M54: 0 | N54: =SUM(N55:N58) -> 0 | O54: =SUM(O55:O58) -> 0 | P54: =SUM(P55:P58) -> 0
F55: Pohledávky za společníky
F56: Dlouhodobé poskytnuté zálohy
F57: Dohadné účty aktivní
F58: Jiné pohledávky
D59: Krátkodobé pohledávky | G59: =G60+G61+G62+G63 -> 4263 | H59: =H60+H61+H62+H63 -> 3980 | I59: 4994 | J59: 7022 | K59: 3897 | L59: 1964 | M59: 11629 | N59: 7817 | O59: 7963 | P59: 9214
E60: Pohledávky z obchodních vztahů | G60: 3640 | H60: 3667 | I60: 4765 | J60: 6710 | K60: 3739 | L60: 1817 | M60: 8806 | N60: 7062 | O60: =CEILING(TREND($G60:N60,$G$2:N$2,O$2),1) -> 7053 | P60: 8044
E61: Pohledávky - ovládaná nebo ovládající osoba
E62: Pohledávky - podstatný vliv
E63: Poledávky - ostatní | G63: =SUM(G64:G69) -> 623 | H63: =SUM(H64:H69) -> 313 | I63: 229 | J63: 312 | K63: 158 | L63: 147 | M63: 2823 | N63: 755 | O63: 910 | P63: 1170
F64: Pohledávky za společníky
F65: Sociální zabezpečení a zdravotní pojištění | M65: -497
F66: Stát - daňové pohledávky | G66: 0 | H66: 7 | I66: 0 | J66: 0 | K66: 0 | L66: 5 | M66: 1275 | N66: =CEILING(TREND($G66:M66,$G$2:M$2,N$2),1) -> 730 | O66: =CEILING(TREND($G66:N66,$G$2:N$2,O$2),1) -> 867 | P66: =CEILING(TREND($G66:O66,$G$2:O$2,P$2),1) -> 1004
F67: Krátkodobé poskytnuté zálohy | G67: 611 | H67: 294 | I67: 215 | J67: 286 | K67: 145 | L67: 138 | M67: 167 | N67: =CEILING(TREND($G67:M67,$G$2:M$2,N$2),1) -> 21 | O67: 40 | P67: 165
F68: Dohadné účty aktivní | M68: 1878
F69: Jiné pohledávky | G69: 12 | H69: 12 | I69: 14 | J69: 26 | K69: 13 | L69: 4 | M69: 0 | N69: =CEILING(TREND($G69:M69,$G$2:M$2,N$2),1) -> 4 | O69: =CEILING(TREND($G69:N69,$G$2:N$2,O$2),1) -> 3 | P69: =CEILING(TREND($G69:O69,$G$2:O$2,P$2),1) -> 1
C70: Krátkodobý finanční majetek | G70: =SUM(G71:G72) -> 0 | H70: =SUM(H71:H72) -> 0 | I70: 0 | J70: 0 | K70: 0 | L70: 0 | M70: 0 | N70: 0 | O70: 0 | P70: 0
D71: Podíly - ovládaná a ovládající osoba
D72: Ostatní krátkodobý finanční majetek
C73: Peněžní prostředky | G73: =SUM(G74:G75) -> 8495 | H73: =SUM(H74:H75) -> 4895 | I73: 4456 | J73: 9322 | K73: 8523 | L73: 10936 | M73: 4406 | N73: 8835 | O73: 9066 | P73: 8106
D74: Peněžní prostředky v pokladně | G74: 38 | H74: 78 | I74: 54 | J74: 89 | K74: 71 | L74: 44 | M74: 39 | N74: =CEILING(TREND($G74:M74,$G$2:M$2,N$2),1) -> 53 | O74: =CEILING(TREND($G74:N74,$G$2:N$2,O$2),1) -> 51 | P74: =CEILING(TREND($G74:O74,$G$2:O$2,P$2),1) -> 50
D75: Peněžní prostředky na účtech | G75: 8457 | H75: 4817 | I75: 4402 | J75: 9233 | K75: 8452 | L75: 10892 | M75: 4367 | N75: 8782 | O75: 9015 | P75: 8056
B76: Časové rozlišení | G76: =SUM(G77:G79) -> 1606 | H76: =SUM(H77:H79) -> 3075 | I76: 2713 | J76: 1445 | K76: 1888 | L76: 1111 | M76: 166 | N76: 1419 | O76: 2413 | P76: 2988
D77: Náklady příštích období | G77: 1606 | H77: 3075 | I77: 2713 | J77: 1445 | K77: 1888 | L77: 1111 | M77: 166 | N77: 1419 | O77: 2413 | P77: 2988
D78: Komplexní náklady příštích období
D79: Příjmy příštích období
A80: Pasiva | G80: =G81+G103+G139 -> 15344 | H80: 14986 | I80: 14495 | J80: 19833 | K80: 15536 | L80: 14635 | M80: 16670 | N80: =N81+N103+N139 -> 18567 | O80: =O81+O103+O139 -> 19814 | P80: =P81+P103+P139 -> 20614
B81: Vlastní kapitál | G81: =G82+G86+G94+G97+G102+G101 -> 6954 | H81: =H82+H86+H94+H97+H102+H101 -> 8322 | I81: 7452 | J81: 10011 | K81: 8645 | L81: 10112 | M81: 7128 | N81: =N82+N86+N94+N97+N102+N101 -> 11422 | O81: =O82+O86+O94+O97+O102+O101 -> 12602 | P81: =P82+P86+P94+P97+P102+P101 -> 13337
C82: Základní kapitál | G82: =SUM(G83:G85) -> 300 | H82: 300 | I82: 300 | J82: 300 | K82: 300 | L82: 300 | M82: 300 | N82: =SUM(N83:N85) -> 300 | O82: =SUM(O83:O85) -> 300 | P82: =SUM(P83:P85) -> 300
D83: Základní kapitál | G83: 300 | H83: 300 | I83: 300 | J83: 300 | K83: 300 | L83: 300 | M83: 300 | N83: =CEILING(TREND($G83:M83,$G$2:M$2,N$2),1) -> 300 | O83: =CEILING(TREND($G83:N83,$G$2:N$2,O$2),1) -> 300 | P83: =CEILING(TREND($G83:O83,$G$2:O$2,P$2),1) -> 300
D84: Vlastní podíly
D85: Změny základního kapitálu
C86: Ážio a kapitálové fondy | G86: =G87+G88 -> 893 | H86: =H87+H88 -> 893 | I86: 893 | J86: 893 | K86: 893 | L86: 893 | M86: 893 | N86: 893 | O86: 893 | P86: 893
D87: Ážio
D88: Kapitálové fondy | G88: =SUM(G89:G93) -> 893 | H88: =SUM(H89:H93) -> 893 | I88: 893 | J88: 893 | K88: 893 | L88: 893 | M88: 893 | N88: =CEILING(TREND($G88:M88,$G$2:M$2,N$2),1) -> 893 | O88: =CEILING(TREND($G88:N88,$G$2:N$2,O$2),1) -> 893 | P88: =CEILING(TREND($G88:O88,$G$2:O$2,P$2),1) -> 893
E89: Ostatní kapitálové fondy | G89: 893 | H89: 893 | I89: 893 | J89: 893 | K89: 893 | L89: 893 | M89: 893 | N89: =CEILING(TREND($G89:M89,$G$2:M$2,N$2),1) -> 893 | O89: =CEILING(TREND($G89:N89,$G$2:N$2,O$2),1) -> 893 | P89: =CEILING(TREND($G89:O89,$G$2:O$2,P$2),1) -> 893
E90: Oceňovací rozdíly z přeceňění majetku a závazků
E91: Oceňovací rozdíly z přecenění při přeměnách obchodních korporací
E92: Rozdíly z přeměn obchodních korporací
E93: Rozdíly z ocenění při přeměnách obchodních korporací
C94: Fondy ze zisku | G94: =SUM(G95:G96) -> 30 | H94: 30 | I94: 30 | J94: 30 | K94: 30 | L94: 30 | M94: 30 | N94: 30 | O94: 30 | P94: 30
D95: Ostatní rezervní fondy | G95: 30 | H95: 30 | I95: 30 | J95: 30 | K95: 30 | L95: 30 | M95: 30 | N95: =CEILING(TREND($G95:M95,$G$2:M$2,N$2),1) -> 30 | O95: =CEILING(TREND($G95:N95,$G$2:N$2,O$2),1) -> 30 | P95: =CEILING(TREND($G95:O95,$G$2:O$2,P$2),1) -> 30
D96: Statutární a ostatní fondy
C97: Výsledek hospodaření minulých let | G97: =SUM(G98:G100) -> 3530 | H97: =SUM(H98:H100) -> 3630 | I97: 4879 | J97: 4983 | K97: 4588 | L97: 5322 | M97: 8889 | N97: 7856 | O97: 8541 | P97: 9226
D98: Nerozdělený zisk minulých let | G98: 3530 | H98: 3630 | I98: 4879 | J98: 4983 | K98: 4588 | L98: 5322 | M98: 8889 | N98: =CEILING(TREND($G98:M98,$G$2:M$2,N$2),1) -> 7856 | O98: =CEILING(TREND($G98:N98,$G$2:N$2,O$2),1) -> 8541 | P98: =CEILING(TREND($G98:O98,$G$2:O$2,P$2),1) -> 9226
D99: Neuhrazená ztráta minulých let
D100: Jiný výsledek hospodaření minulých let
C101: Výsledek hospodaření běžného účetního období | G101: 2201 | H101: 3469 | I101: 1350 | J101: 3805 | K101: 2834 | L101: 3567 | M101: -2984 | N101: 2343 | O101: 2838 | P101: 2888
C102: Rozhodnuto o zálohové výplatě podílu na zisku
B103: Cizí kapitál | G103: =G104+G109 -> 4317 | H103: =H104+H109 -> 3859 | I103: 4925 | J103: 5377 | K103: 2887 | L103: 2243 | M103: 7491 | N103: =N104+N109 -> 4781 | O103: =O104+O109 -> 5034 | P103: =P104+P109 -> 5286
C104: Rezervy | G104: =SUM(G105:G108) -> 0 | H104: =SUM(H105:H108) -> 0 | I104: 0 | J104: 0 | K104: 0 | L104: 0 | M104: 106 | N104: =SUM(N105:N108) -> 0 | O104: =SUM(O105:O108) -> 0 | P104: =SUM(P105:P108) -> 0
D105: Rezerva na důchody a podobné závazky
D106: Rezerva na daň z příjmu
D107: Rezervy podle zvláštních právních předpisů
D108: Ostatní rezervy | M108: 106
C109: Závazky | G109: =G110+G123 -> 4317 | H109: =H110+H123 -> 3859 | I109: 4925 | J109: 5377 | K109: 2887 | L109: 2243 | M109: 7385 | N109: =N110+N123 -> 4781 | O109: 5034 | P109: 5286
D110: Dlouhodobé závazky | G110: =SUM(G111:G119) -> 0 | H110: 0 | I110: 0 | J110: 0 | K110: 0 | L110: 0 | M110: 0 | N110: =CEILING(TREND($G110:M110,$G$2:M$2,N$2),1) -> 0 | O110: =CEILING(TREND($G110:N110,$G$2:N$2,O$2),1) -> 0 | P110: =CEILING(TREND($G110:O110,$G$2:O$2,P$2),1) -> 0
E111: Vydané dluhopisy
E112: Závazky k úvěrovým institucím
E113: Dlouhodobé přijaté zálohy
E114: Závazky z obchodních vztahů
E115: Dlouhodobé směnky k úhradě
E116: Závazky - ovládaná nebo ovládající osoba
E117: Závazky - podstatný vliv
E118: Odložený daňový závazek
E119: Závazky - ostatní | G119: =SUM(G120:G122) -> 0 | H119: 0 | I119: 0 | J119: 0 | K119: 0 | L119: 0 | M119: 0 | N119: =CEILING(TREND($G119:M119,$G$2:M$2,N$2),1) -> 0 | O119: =CEILING(TREND($G119:N119,$G$2:N$2,O$2),1) -> 0 | P119: =CEILING(TREND($G119:O119,$G$2:O$2,P$2),1) -> 0
F120: Závazky ke společníkům
F121: Dohadné účty pasivní
F122: Jiné závazky
D123: Krátkodobé závazky | G123: =SUM(G124:G131) -> 4317 | H123: 3859 | I123: 4925 | J123: 5377 | K123: 2887 | L123: 2243 | M123: 7385 | N123: 4781 | O123: 5034 | P123: 5286
E124: Vydané dluhopisy
E125: Závazky k úvěrovým institucím | G125: 0 | H125: 0 | I125: 0 | J125: 0 | K125: 0 | L125: 86 | M125: 34 | N125: =CEILING(TREND($G125:M125,$G$2:M$2,N$2),1) -> 57 | O125: =CEILING(TREND($G125:N125,$G$2:N$2,O$2),1) -> 67 | P125: =CEILING(TREND($G125:O125,$G$2:O$2,P$2),1) -> 77
E126: Krátkodobé přijaté zálohy
E127: Závazky z obchodních vztahů | G127: 874 | H127: 1143 | I127: 668 | J127: 1867 | K127: 723 | L127: 223 | M127: 2887 | N127: =CEILING(TREND($G127:M127,$G$2:M$2,N$2),1) -> 1806 | O127: =CEILING(TREND($G127:N127,$G$2:N$2,O$2),1) -> 1958 | P127: =CEILING(TREND($G127:O127,$G$2:O$2,P$2),1) -> 2110
E128: Krátkodobé směnky k úhradě
E129: Závazky - ovládaná a ovládající osoba
E130: Závazky - podstatný vliv
E131: Závazky - ostatní | G131: =SUM(G132:G138) -> 3443 | H131: =SUM(H132:H138) -> 2716 | I131: 4257 | J131: 3510 | K131: 2164 | L131: 1934 | M131: 4464 | N131: 2918 | O131: 3009 | P131: 3099
F132: Závazky ke společníkům | I132: 1887 | K132: 30
F133: Krátkodobé finanční výpomoci
F134: Závazky k zaměstnancům | G134: 700 | H134: 545 | I134: 626 | J134: 752 | K134: 598 | L134: 683 | M134: 834 | N134: =CEILING(TREND($G134:M134,$G$2:M$2,N$2),1) -> 770 | O134: =CEILING(TREND($G134:N134,$G$2:N$2,O$2),1) -> 794 | P134: =CEILING(TREND($G134:O134,$G$2:O$2,P$2),1) -> 817
F135: Závazky ze sociálního zabezpečení a zdravotního pojištění | G135: 462 | H135: 389 | I135: 421 | J135: 525 | K135: 423 | L135: 442
F136: Stát - daňové závazky a dotace | G136: 1924 | H136: 1125 | I136: 1312 | J136: 2209 | K136: 1088 | L136: 781 | M136: 639 | N136: =CEILING(TREND($G136:M136,$G$2:M$2,N$2),1) -> 616 | O136: =CEILING(TREND($G136:N136,$G$2:N$2,O$2),1) -> 446 | P136: =CEILING(TREND($G136:O136,$G$2:O$2,P$2),1) -> 276
F137: Dahodné účty pasivní | G137: 357 | H137: 657 | I137: 11 | J137: 24 | K137: 25 | L137: 28 | M137: 2983 | N137: =CEILING(TREND($G137:M137,$G$2:M$2,N$2),1) -> 1532 | O137: =CEILING(TREND($G137:N137,$G$2:N$2,O$2),1) -> 1769 | P137: =CEILING(TREND($G137:O137,$G$2:O$2,P$2),1) -> 2006
F138: Jiné závazky | M138: 8
B139: Časové rozlišení | G139: =SUM(G140:G141) -> 4073 | H139: 2805 | I139: 2118 | J139: 4445 | K139: 4004 | L139: 2280 | M139: 2051 | N139: 2364 | O139: 2178 | P139: 1991
D140: Výdaje příštích období
D141: Výnosy příštích období | G141: 4073 | H141: 2805 | I141: 2118 | J141: 4445 | K141: 4004 | L141: 2280 | M141: 2051 | N141: =CEILING(TREND($G141:M141,$G$2:M$2,N$2),1) -> 2364 | O141: =CEILING(TREND($G141:N141,$G$2:N$2,O$2),1) -> 2178 | P141: =CEILING(TREND($G141:O141,$G$2:O$2,P$2),1) -> 1991

Sheet Predikce hodnot výkazovky (hidden)
D1: 1 | E1: 2 | F1: 3 | G1: 4 | H1: 5 | I1: 6 | J1: 7 | K1: 8 | L1: 9 | M1: 10
A2: Výkaz zisku a ztrát (1.1.2010 - 30.6.2018) | D2: 2010 | E2: 2011 | F2: 2012 | G2: 2013 | H2: 2014 | I2: 2015 | J2: 2016 / 2017 | K2: 2017 / 2018 | L2: 2018 / 2019 | M2: 2019 / 2020
B3: Tžby za prodej vlastních výrobků a služeb | D3: 17699 | E3: 22020 | F3: 19480 | G3: 23651 | H3: 20991 | I3: 22836 | J3: 36766 | K3: 35193 | L3: =CEILING(TREND($D3:K3,$D$1:K$1,L$1),1) -> 35737 | M3: =CEILING(TREND($D3:L3,$D$1:L$1,M$1),1) -> 38161
B4: Tržby za prodej zboží | D4: 11242 | E4: 3737 | F4: 9240 | G4: 1796 | H4: 1717 | I4: 0 | J4: 233 | K4: 0 | L4: 0 | M4: 0
B5: Výkonová spotřeba | D5: =SUM(D6:D8) -> 16997 | E5: 12156 | F5: 17232 | G5: 10274 | H5: 9441 | I5: 7077 | J5: 14251 | K5: =SUM(K6:K8) -> 9967 | L5: 10871 | M5: 10197
C6: Náklady vynaložené na prodané zbpží | D6: 8586 | E6: 2696 | F6: 8099 | G6: 1469 | H6: 1183 | I6: 0 | J6: 147 | K6: 0 | L6: 0 | M6: 0
C7: Spotřeba materiálu a energie | D7: 579 | E7: 645 | F7: 592 | G7: 452 | H7: 432 | I7: 429 | J7: 1604 | K7: 1322 | L7: =CEILING(TREND($D7:K7,$D$1:K$1,L$1),1) -> 1266 | M7: =CEILING(TREND($D7:L7,$D$1:L$1,M$1),1) -> 1379
C8: Služby | D8: 7832 | E8: 8815 | F8: 8541 | G8: 8353 | H8: 7826 | I8: 6648 | J8: 12500 | K8: =AVERAGE(D8:J8) -> 8645 | L8: =CEILING(TREND($D8:K8,$D$1:K$1,L$1),1) -> 9605 | M8: 8818
B9: Změna stavu zásob vlastních činností | D9: 0 | E9: 0 | F9: 0 | G9: 0 | H9: 317 | I9: -83 | J9: -234 | K9: 0 | L9: 0 | M9: 0
B10: Aktivace | D10: 0 | E10: 20 | F10: 0 | G10: 0 | H10: 0 | I10: 0 | J10: 0 | K10: 0 | L10: 0 | M10: 0
B11: Osobní náklady | D11: =SUM(D12:D14) -> 8426 | E11: 8728 | F11: 9270 | G11: 9360 | H11: 9565 | I11: 10860 | J11: 25203 | K11: =SUM(K12:K14) -> 22193 | L11: =SUM(L12:L14) -> 21299 | M11: =SUM(M12:M14) -> 24318
C12: Mzdové náklady | D12: 6077 | E12: 6267 | F12: 6633 | G12: 6692 | H12: 6855 | I12: 7866 | J12: 18362 | K12: 16261 | L12: 15643 | M12: =CEILING(TREND($D12:L12,$D$1:L$1,M$1),1) -> 17813
C13: Náklady na sociální zabezpečení a zdravotní pojištění | D13: 2229 | E13: 2344 | F13: 2505 | G13: 2542 | H13: 2588 | I13: 2877 | J13: 6610 | K13: 5714 | L13: 5443 | M13: =CEILING(TREND($D13:L13,$D$1:L$1,M$1),1) -> 6277
C14: Sociální náklady | D14: 120 | E14: 117 | F14: 132 | G14: 126 | H14: 122 | I14: 117 | J14: 231 | K14: =CEILING(J14*0.94,1) -> 218 | L14: =CEILING(TREND($D14:K14,$D$1:K$1,L$1),1) -> 213 | M14: =CEILING(TREND($D14:L14,$D$1:L$1,M$1),1) -> 228
B15: Úpravy hodnot v provozní oblasti | D15: =SUM(D16:D18) -> 274 | E15: 270 | F15: 294 | G15: 538 | H15: 293 | I15: 268 | J15: 393 | K15: 384 | L15: 397 | M15: 410
C16: Úpravy hodnot dlouhodobého nehmotného a hmotného majetku | D16: 274 | E16: 270 | F16: 294 | G16: 538 | H16: 293 | I16: 268 | J16: 393 | K16: =CEILING(TREND($D16:J16,$D$1:J$1,K$1),1) -> 384 | L16: =CEILING(TREND($D16:K16,$D$1:K$1,L$1),1) -> 397 | M16: =CEILING(TREND($D16:L16,$D$1:L$1,M$1),1) -> 410
C17: Úpravy hodnot zásob
C18: Úpravy hodnot pohledávek
B19: Ostatní provozní výnosy | D19: =SUM(D20:D22) -> 125 | E19: 79 | F19: 287 | G19: 145 | H19: 17 | I19: 549 | J19: 532 | K19: 373 | L19: 417 | M19: 461
C20: Tržby z prodeje dlouhodobého majetku | E20: 22 | I20: 299 | J20: 35
C21: Tržby z prodeje majetku
C22: Jiné provozní výnosy | D22: 125 | E22: 57 | F22: 287 | G22: 145 | H22: 17 | I22: 250 | J22: 497 | K22: =CEILING(TREND($D22:J22,$D$1:J$1,K$1),1) -> 373 | L22: =CEILING(TREND($D22:K22,$D$1:K$1,L$1),1) -> 417 | M22: =CEILING(TREND($D22:L22,$D$1:L$1,M$1),1) -> 461
B23: Ostatní provozní náklady | D23: =SUM(D24:D27) -> 272 | E23: 225 | F23: 479 | G23: 787 | H23: 221 | I23: 577 | J23: 365 | K23: 224 | L23: 211 | M23: 198
C24: Zůstatková cena prodaného dlouhodobého majetku | G24: 490 | I24: 391
C25: Daně a poplatky | D25: 36 | E25: 51 | F25: 34 | G25: 62 | H25: 35 | I25: 37 | J25: 54 | K25: =CEILING(TREND($D25:J25,$D$1:J$1,K$1),1) -> 48 | L25: =CEILING(TREND($D25:K25,$D$1:K$1,L$1),1) -> 49 | M25: =CEILING(TREND($D25:L25,$D$1:L$1,M$1),1) -> 50
C26: Změna stavu rezerv a opravných položek v provozní oblasti a komplexních nákladů příštích období | J26: 106
C27: Jiné provozní náklady | D27: 236 | E27: 174 | F27: 445 | G27: 235 | H27: 186 | I27: 149 | J27: 205 | K27: =CEILING(TREND($D27:J27,$D$1:J$1,K$1),1) -> 176 | L27: =CEILING(TREND($D27:K27,$D$1:K$1,L$1),1) -> 162 | M27: =CEILING(TREND($D27:L27,$D$1:L$1,M$1),1) -> 148
A28: Provozní výsledek hospodaření | D28: =D3+D4-D5+D9+D10-D11-D16+D19-D23 -> 3097 | E28: 4477 | F28: 1732 | G28: 4633 | H28: 3522 | I28: 4520 | J28: -2915 | K28: 2798 | L28: 3376 | M28: 3499
B29: Výnosy z dlouhodobého finančního majetku - podíly | D29: =SUM(D30:D31) -> 0 | E29: =SUM(E30:E31) -> 0 | F29: 0 | G29: 0 | H29: 0 | I29: 0 | J29: 0 | K29: =SUM(K30:K31) -> 0 | L29: =SUM(L30:L31) -> 0 | M29: =SUM(M30:M31) -> 0
C30: Výnosy z podílů - ovládaná a ovládající osoba
C31: Ostatní výnosy z podílů
B32: Náklady vynaložené na prodané podíly | D32: 0 | E32: 0 | F32: 0 | G32: 0 | H32: 0 | I32: 0 | J32: 0 | K32: =CEILING(TREND($D32:J32,$D$1:J$1,K$1),1) -> 0 | L32: =CEILING(TREND($D32:K32,$D$1:K$1,L$1),1) -> 0 | M32: =CEILING(TREND($D32:L32,$D$1:L$1,M$1),1) -> 0
B33: Výnosy z ostatního dlouhodobého finančního majetku | D33: =SUM(D34:D35) -> 0 | E33: =SUM(E34:E35) -> 0 | F33: 0 | G33: 0 | H33: 0 | I33: 0 | J33: 0 | K33: 0 | L33: 0 | M33: 0
C34: Výnosy z ostatního dlouhodobého finančního majetku
C35: Ostaní výnosy z ostatního dlouhodobého finančního majetku
B36: Náklady související s ostatním dlouhodobým finančním majetkem | D36: 0 | E36: 0 | F36: 0 | G36: 0 | H36: 0 | I36: 0 | J36: 0 | K36: =CEILING(TREND($D36:J36,$D$1:J$1,K$1),1) -> 0 | L36: =CEILING(TREND($D36:K36,$D$1:K$1,L$1),1) -> 0 | M36: =CEILING(TREND($D36:L36,$D$1:L$1,M$1),1) -> 0
B37: Výnosové úroky a podobné výnosy | D37: =SUM(D38:D39) -> 1 | E37: =SUM(E38:E39) -> 1 | F37: 1 | G37: 0 | H37: 0 | I37: 0 | J37: 0 | K37: 0 | L37: 0 | M37: 0
C38: Výnosové úroky a podobné výnosy - ovládaná nebo ovládající osoba
C39: Ostatní výnosové úroky a podobné výnosy | D39: 1 | E39: 1 | F39: 1
B40: Úpravy hodnot a rezervy ve finanční oblasti | D40: 0 | E40: 0 | F40: 0 | G40: 0 | H40: 0 | I40: 0 | J40: 0 | K40: =CEILING(TREND($D40:J40,$D$1:J$1,K$1),1) -> 0 | L40: =CEILING(TREND($D40:K40,$D$1:K$1,L$1),1) -> 0 | M40: =CEILING(TREND($D40:L40,$D$1:L$1,M$1),1) -> 0
B41: Nákladové úroky a podobné náklady | D41: =SUM(D42:D43) -> 4 | E41: =SUM(E42:E43) -> 23 | F41: 8 | G41: 0 | H41: 0 | I41: 0 | J41: 0 | K41: 0 | L41: 0 | M41: 0
C42: Nákladové úroky a podobné náklady - ovládaná nebo ovládající osoba
C43: Ostatní nákladové úroky a podobné náklady | D43: 4 | E43: 23 | F43: 8
B44: Ostatní finanční výnosy | D44: 245 | E44: 176 | F44: 275 | G44: 196 | H44: 99 | I44: 52 | J44: 278 | K44: =CEILING(TREND($D44:J44,$D$1:J$1,K$1),1) -> 143 | L44: =CEILING(TREND($D44:K44,$D$1:K$1,L$1),1) -> 132 | M44: =CEILING(TREND($D44:L44,$D$1:L$1,M$1),1) -> 120
B45: Ostatní finanční náklady | D45: 607 | E45: 354 | F45: 250 | G45: 111 | H45: 74 | I45: 87 | J45: 347 | K45: =CEILING(TREND($D45:J45,$D$1:J$1,K$1),1) -> 49 | L45: 4 | M45: 53
A46: Finanční výsledek hospodaření | D46: =D29+D33+D37+D44-D32-D36-D41-D45 -> -365 | E46: =E29+E33+E37+E44-E32-E36-E41-E45 -> -200 | F46: 18 | G46: 85 | H46: 25 | I46: -35 | J46: -69 | K46: =K29+K33+K37+K44-K32-K36-K41-K45 -> 94 | L46: =L29+L33+L37+L44-L32-L36-L41-L45 -> 128 | M46: =M29+M33+M37+M44-M32-M36-M41-M45 -> 67
A47: Výsledek hospodaření před zdaněním | D47: =D28+D46 -> 2732 | E47: =E28+E46 -> 4277 | F47: 1750 | G47: 4718 | H47: 3547 | I47: 4485 | J47: -2984 | K47: =K28+K46 -> 2892 | L47: =L28+L46 -> 3504 | M47: =M28+M46 -> 3566
B48: Daň z příjmu | D48: =SUM(D49:D50) -> 531 | E48: =SUM(E49:E50) -> 808 | F48: 400 | G48: 913 | H48: 713 | I48: 918 | J48: 0 | K48: 549.48 | L48: 665.76 | M48: 677.54
C49: Splatná | D49: 531 | E49: 808 | F49: 400 | G49: 913 | H49: 713 | I49: 918 | J49: 0 | K49: =K47*0.19 -> 549.48 | L49: =L47*0.19 -> 665.76 | M49: =M47*0.19 -> 677.54
C50: Odložená
A51: Výsledek hospodaření po zdanění | D51: =D47-D48 -> 2201 | E51: =E47-E48 -> 3469 | F51: 1350 | G51: 3805 | H51: 2834 | I51: 3567 | J51: -2984 | K51: 2342.52 | L51: =L47-L48 -> 2838.24 | M51: =M47-M48 -> 2888.46
B52: Převod podílu na výsledku hospodaření společníkům | D52: 0 | E52: 0 | F52: 0 | G52: 0 | H52: 0 | I52: 0 | J52: 0 | K52: 0 | L52: 0 | M52: 0
A53: Výsledek hospodaření za účetní období | D53: =D51-D52 -> 2201 | E53: =E51-E52 -> 3469 | F53: 1350 | G53: 3805 | H53: 2834 | I53: 3567 | J53: -2984 | K53: =K51-K52 -> 2342.52 | L53: =L51-L52 -> 2838.24 | M53: =M51-M52 -> 2888.46
A54: Čistý obrat za účetní období | D54: =D3+D4+D19+D29+D33+D37+D44 -> 29312 | E54: =E3+E4+E19+E29+E33+E37+E44 -> 26013 | F54: 29283 | G54: 25788 | H54: 22824 | I54: 23437 | J54: 37809 | K54: =K3+K4+K19+K29+K33+K37+K44 -> 35709 | L54: =L3+L4+L19+L29+L33+L37+L44 -> 36286 | M54: =M3+M4+M19+M29+M33+M37+M44 -> 38742
A56: Celkové výnosy | D56: =D54 -> 29312 | E56: =E54 -> 26013 | F56: 29283 | G56: 25788 | H56: 22824 | I56: 23437 | J56: 37809 | K56: =K54 -> 35709 | L56: =L54 -> 36286 | M56: =M54 -> 38742
A57: Celkové náklady | D57: =D5-D9+D10+D11+D15+D23+D32+D36+D40+D41+D45 -> 26580 | E57: 21776 | F57: 27533 | G57: 21070 | H57: =H5+H9+H10+H11+H15+H23+H32+H36+H40+H41+H45 -> 19911 | I57: 18952 | J57: 40793 | K57: =K5-K9+K10+K11+K15+K23+K32+K36+K40+K41+K45 -> 32817 | L57: =L5-L9+L10+L11+L15+L23+L32+L36+L40+L41+L45 -> 32782 | M57: =M5-M9+M10+M11+M15+M23+M32+M36+M40+M41+M45 -> 35176

Sheet Analýza generátorů hodnot
A1: Rok | B1: 2010 | C1: 2011 | D1: 2012 | E1: 2013 | F1: 2014 | G1: 2015 | H1: 2016 / 2017 | I1: 2017 / 2018 | J1: 2018 / 2019 | K1: 2019 / 2020
A2: Tržby (v tisících Kč) | B2: ='Predikce hodnot výkazovky'!D3+'Predikce hodnot výkazovky'!D4 -> 28941 | C2: ='Predikce hodnot výkazovky'!E3+'Predikce hodnot výkazovky'!E4 -> 25757 | D2: ='Predikce hodnot výkazovky'!F3+'Predikce hodnot výkazovky'!F4 -> 28720 | E2: ='Predikce hodnot výkazovky'!G3+'Predikce hodnot výkazovky'!G4 -> 25447 | F2: ='Predikce hodnot výkazovky'!H3+'Predikce hodnot výkazovky'!H4 -> 22708 | G2: ='Predikce hodnot výkazovky'!I3+'Predikce hodnot výkazovky'!I4 -> 22836 | H2: ='Predikce hodnot výkazovky'!J3+'Predikce hodnot výkazovky'!J4 -> 36999 | I2: ='Predikce hodnot výkazovky'!K3+'Predikce hodnot výkazovky'!K4 -> 35193 | J2: ='Predikce hodnot výkazovky'!L3+'Predikce hodnot výkazovky'!L4 -> 35737 | K2: ='Predikce hodnot výkazovky'!M3+'Predikce hodnot výkazovky'!M4 -> 38161
A3: Tempo růstu tržeb (v %) | B3: x | C3: =(C2-B2)/B2 -> -0.110016931 | D3: 0.1150366891 | E3: -0.1139623955 | F3: -0.1076354777 | G3: 0.005636779989 | H3: 0.6202049396 | I3: -0.04881213006 | J3: 0.01545761941 | K3: 0.06782886084
A4: Průměrné tempo růstu tržeb (v %) | B4: =AVERAGE(C3:H3) -> 0.06821060074 | I4: =AVERAGE(I3:K3) -> 0.01149145007
A6: Rok | B6: 2010 | C6: 2011 | D6: 2012 | E6: 2013 | F6: 2014 | G6: 2015 | H6: 2016 / 2017 | I6: 2017 / 2018 | J6: 2018 / 2019 | K6: 2019 / 2020
A7: Provozní výsledek hospodaření za období (v tisících Kč) | B7: ='Predikce hodnot výkazovky'!D28 -> 3097 | C7: ='Predikce hodnot výkazovky'!E28 -> 4477 | D7: ='Predikce hodnot výkazovky'!F28 -> 1732 | E7: ='Predikce hodnot výkazovky'!G28 -> 4633 | F7: ='Predikce hodnot výkazovky'!H28 -> 3522 | G7: ='Predikce hodnot výkazovky'!I28 -> 4520 | H7: ='Predikce hodnot výkazovky'!J28 -> -2915 | I7: ='Predikce hodnot výkazovky'!K28 -> 2798 | J7: ='Predikce hodnot výkazovky'!L28 -> 3376 | K7: ='Predikce hodnot výkazovky'!M28 -> 3499
A8: Tržby z prodeje dlouhodobého majetku a materiálu (v tisících Kč) | B8: ='Predikce hodnot výkazovky'!D20 -> 0 | C8: ='Predikce hodnot výkazovky'!E20 -> 22 | D8: ='Predikce hodnot výkazovky'!F20 -> 0 | E8: ='Predikce hodnot výkazovky'!G20 -> 0 | F8: ='Predikce hodnot výkazovky'!H20 -> 0 | G8: ='Predikce hodnot výkazovky'!I20 -> 299 | H8: ='Predikce hodnot výkazovky'!J20 -> 35 | I8: ='Predikce hodnot výkazovky'!K20 -> 0 | J8: ='Predikce hodnot výkazovky'!L20 -> 0 | K8: ='Predikce hodnot výkazovky'!M20 -> 0
A9: Zůstatková cena prodaného dlouhodobého majetku a materiálu (v tisících Kč) | B9: ='Predikce hodnot výkazovky'!D24 -> 0 | C9: ='Predikce hodnot výkazovky'!E24 -> 0 | D9: ='Predikce hodnot výkazovky'!F24 -> 0 | E9: ='Predikce hodnot výkazovky'!G24 -> 490 | F9: ='Predikce hodnot výkazovky'!H24 -> 0 | G9: ='Predikce hodnot výkazovky'!I24 -> 391 | H9: ='Predikce hodnot výkazovky'!J24 -> 0 | I9: ='Predikce hodnot výkazovky'!K24 -> 0 | J9: ='Predikce hodnot výkazovky'!L24 -> 0 | K9: ='Predikce hodnot výkazovky'!M24 -> 0
A10: Zisk z prodaného dlouhodobého majetku a materiálu (v tisících Kč) | B10: =B8-B9 -> 0 | C10: =C8-C9 -> 22 | D10: 0 | E10: -490 | F10: 0 | G10: -92 | H10: 35 | I10: 0 | J10: 0 | K10: 0
A11: Korigovaný provozní výsledek hospodaření (v tisících Kč) | B11: =B7-B10 -> 3097 | C11: =C7-C10 -> 4455 | D11: 1732 | E11: 5123 | F11: 3522 | G11: 4612 | H11: -2950 | I11: 2798 | J11: 3376 | K11: 3499
A12: Odpisy (v tisících Kč) | B12: 0 | C12: 0 | D12: 0 | E12: 0 | F12: 0 | G12: 0 | H12: 0 | I12: 0 | J12: 0 | K12: 0
A13: Korigovaný provozní výsledek hospodaření před odpisy (v tisících Kč) | B13: =B12+B11 -> 3097 | C13: =C12+C11 -> 4455 | D13: 1732 | E13: 5123 | F13: 3522 | G13: 4612 | H13: -2950 | I13: 2798 | J13: 3376 | K13: 3499
A14: Tržby (v tisících Kč) | B14: =B2 -> 28941 | C14: 25757 | D14: 28720 | E14: 25447 | F14: 22708 | G14: 22836 | H14: 36999 | I14: 35193 | J14: 35737 | K14: 38161
A15: Provozní zisková marže (v %) | B15: =B13/B14 -> 0.1070108151 | C15: =C13/C14 -> 0.1729626898 | D15: 0.06030640669 | E15: 0.2013203914 | F15: 0.1550995244 | G15: 0.2019618147 | H15: -0.07973188465 | I15: 0.07950444691 | J15: 0.0944679184 | K15: 0.09169046933
A16: Tempo růstu korigovaného provozního výsledku hospodaření před odpisy (v %) | B16: x | C16: =(C13-B13)/B13 -> 0.4384888602 | D16: =(D13-C13)/C13 -> -0.6112233446 | E16: 1.957852194 | F16: -0.3125121999 | G16: 0.3094832482 | H16: -1.639635733 | I16: =(I13-H13)/((-1)*H13) -> 1.948474576 | J16: 0.2065761258 | K16: 0.03643364929
A17: Průměrné tempo růstu korigovaného provozního výsledku hospodaření před odpisy (v %) | B17: =AVERAGE(B16:H16) -> 0.02374217084 | I17: =AVERAGE(I16:K16) -> 0.7304947838
A19: Rok | B19: 2010 | C19: 2011 | D19: 2012 | E19: 2013 | F19: 2014 | G19: 2015 | H19: 2016 / 2017 | I19: 2017 / 2018 | J19: 2018 / 2019 | K19: 2019 / 2020
A20: Provozní zisková marže (v %) | B20: =B15 -> 0.1070108151 | C20: =C15 -> 0.1729626898 | D20: 0.06030640669 | E20: 0.2013203914 | F20: 0.1550995244 | G20: 0.2019618147 | H20: -0.07973188465 | I20: 0.07950444691 | J20: 0.0944679184 | K20: 0.09169046933
A21: Podíl odpisů na tržbách (v %) | B21: =0 -> 0 | C21: =0 -> 0 | D21: =0 -> 0 | E21: =0 -> 0 | F21: =0 -> 0 | G21: =0 -> 0 | H21: =0 -> 0 | I21: =0 -> 0 | J21: =0 -> 0 | K21: =0 -> 0
A22: Zisková marže před odpisy (v %) | B22: =B20-B21 -> 0.1070108151 | C22: =C20-C21 -> 0.1729626898 | D22: 0.06030640669 | E22: 0.2013203914 | F22: 0.1550995244 | G22: 0.2019618147 | H22: -0.07973188465 | I22: 0.07950444691 | J22: 0.0944679184 | K22: 0.09169046933
A23: Průměrná zisková po dani (v %) | B23: =B22*0.81 -> 0.08667876024 | C23: =C22*0.81 -> 0.1400997787 | D23: 0.04884818942 | E23: 0.163069517 | F23: 0.1256306148 | G23: 0.1635890699 | H23: -0.06458282656 | I23: 0.06439860199 | J23: 0.07651901391 | K23: 0.07426928016
A24: Průměrná zisková marže po dani (v %) | B24: =AVERAGE(B23:H23) -> 0.09476187193 | I24: =AVERAGE(I23:K23) -> 0.07172896535
A26: Rok | B26: 2010 | C26: 2011 | D26: 2012 | E26: 2013 | F26: 2014 | G26: 2015 | H26: 2016 / 2017 | I26: 2017 / 2018 | J26: 2018 / 2019 | K26: 2019 / 2020
A27: Zásoby | B27: ='Predikce hodnot rozvahy'!G40 -> 3 | C27: ='Predikce hodnot rozvahy'!H40 -> 1538 | D27: ='Predikce hodnot rozvahy'!I40 -> 99 | E27: ='Predikce hodnot rozvahy'!J40 -> 840 | F27: ='Predikce hodnot rozvahy'!K40 -> 317 | G27: ='Predikce hodnot rozvahy'!L40 -> 234 | H27: ='Predikce hodnot rozvahy'!M40 -> 0 | I27: ='Predikce hodnot rozvahy'!N40 -> 0 | J27: ='Predikce hodnot rozvahy'!O40 -> 0 | K27: ='Predikce hodnot rozvahy'!P40 -> 0
A28: Pohledávky | B28: ='Predikce hodnot rozvahy'!G48 -> 4263 | C28: ='Predikce hodnot rozvahy'!H48 -> 3980 | D28: ='Predikce hodnot rozvahy'!I48 -> 4994 | E28: ='Predikce hodnot rozvahy'!J48 -> 7022 | F28: ='Predikce hodnot rozvahy'!K48 -> 3897 | G28: ='Predikce hodnot rozvahy'!L48 -> 1964 | H28: ='Predikce hodnot rozvahy'!M48 -> 11629 | I28: ='Predikce hodnot rozvahy'!N48 -> 7817 | J28: ='Predikce hodnot rozvahy'!O48 -> 7963 | K28: ='Predikce hodnot rozvahy'!P48 -> 9214
A29: Peněžní prostředky nutné | B29: ='Predikce hodnot rozvahy'!G73 -> 8495 | C29: ='Predikce hodnot rozvahy'!H73 -> 4895 | D29: ='Predikce hodnot rozvahy'!I73 -> 4456 | E29: ='Predikce hodnot rozvahy'!J73 -> 9322 | F29: ='Predikce hodnot rozvahy'!K73 -> 8523 | G29: ='Predikce hodnot rozvahy'!L73 -> 10936 | H29: ='Predikce hodnot rozvahy'!M73 -> 4406 | I29: ='Predikce hodnot rozvahy'!N73 -> 8835 | J29: ='Predikce hodnot rozvahy'!O73 -> 9066 | K29: ='Predikce hodnot rozvahy'!P73 -> 8106
A30: Časové rozlišení aktiv | B30: ='Predikce hodnot rozvahy'!G76 -> 1606 | C30: ='Predikce hodnot rozvahy'!H76 -> 3075 | D30: ='Predikce hodnot rozvahy'!I76 -> 2713 | E30: ='Predikce hodnot rozvahy'!J76 -> 1445 | F30: ='Predikce hodnot rozvahy'!K76 -> 1888 | G30: ='Predikce hodnot rozvahy'!L76 -> 1111 | H30: ='Predikce hodnot rozvahy'!M76 -> 166 | I30: ='Predikce hodnot rozvahy'!N76 -> 1419 | J30: ='Predikce hodnot rozvahy'!O76 -> 2413 | K30: ='Predikce hodnot rozvahy'!P76 -> 2988
A31: Krátkodobé závazky | B31: ='Predikce hodnot rozvahy'!G123 -> 4317 | C31: ='Predikce hodnot rozvahy'!H123 -> 3859 | D31: ='Predikce hodnot rozvahy'!I123 -> 4925 | E31: ='Predikce hodnot rozvahy'!J123 -> 5377 | F31: ='Predikce hodnot rozvahy'!K123 -> 2887 | G31: ='Predikce hodnot rozvahy'!L123 -> 2243 | H31: ='Predikce hodnot rozvahy'!M123 -> 7385 | I31: ='Predikce hodnot rozvahy'!N123 -> 4781 | J31: ='Predikce hodnot rozvahy'!O123 -> 5034 | K31: ='Predikce hodnot rozvahy'!P123 -> 5286
A32: Časové rozlišení pasiv | B32: ='Predikce hodnot rozvahy'!G139 -> 4073 | C32: ='Predikce hodnot rozvahy'!H139 -> 2805 | D32: ='Predikce hodnot rozvahy'!I139 -> 2118 | E32: ='Predikce hodnot rozvahy'!J139 -> 4445 | F32: ='Predikce hodnot rozvahy'!K139 -> 4004 | G32: ='Predikce hodnot rozvahy'!L139 -> 2280 | H32: ='Predikce hodnot rozvahy'!M139 -> 2051 | I32: ='Predikce hodnot rozvahy'!N139 -> 2364 | J32: ='Predikce hodnot rozvahy'!O139 -> 2178 | K32: ='Predikce hodnot rozvahy'!P139 -> 1991
A33: Upravený pracovní kapitál | B33: =B27+B28+B29+B30-B31-B32 -> 5977 | C33: =C27+C28+C29+C30-C31-C32 -> 6824 | D33: 5219 | E33: 8807 | F33: 7734 | G33: 9722 | H33: 6765 | I33: 10926 | J33: 12230 | K33: 13031
A34: Tržby (v tisících Kč) | B34: =B14 -> 28941 | C34: =C14 -> 25757 | D34: 28720 | E34: 25447 | F34: 22708 | G34: 22836 | H34: 36999 | I34: 35193 | J34: 35737 | K34: 38161
A35: Koeficient náročnosti růstu tržeb na růst pracovního kapitálu (v %) | B35: =(H33-B33)/(H34-B34) -> 0.09779101514 | I35: =(K33-I33)/(K34-I34) -> 0.7092318059
A37: Rok | B37: 2010 | C37: 2011 | D37: 2012 | E37: 2013 | F37: 2014 | G37: 2015 | H37: 2016 / 2017 | I37: 2017 / 2018 | J37: 2018 / 2019 | K37: 2019 / 2020
A38: Tržby (v tisících Kč) | B38: =B14 -> 28941 | C38: =C14 -> 25757 | D38: 28720 | E38: 25447 | F38: 22708 | G38: 22836 | H38: 36999 | I38: 35193 | J38: 35737 | K38: 38161
A39: Provozně nutný dlouhodobý majetek | B39: ='Predikce hodnot rozvahy'!G4+'Predikce hodnot rozvahy'!G6+'Predikce hodnot rozvahy'!G16 -> 977 | C39: ='Predikce hodnot rozvahy'!H4+'Predikce hodnot rozvahy'!H6+'Predikce hodnot rozvahy'!H16 -> 1498 | D39: ='Predikce hodnot rozvahy'!I4+'Predikce hodnot rozvahy'!I6+'Predikce hodnot rozvahy'!I16 -> 2233 | E39: ='Predikce hodnot rozvahy'!J4+'Predikce hodnot rozvahy'!J6+'Predikce hodnot rozvahy'!J16 -> 1204 | F39: ='Predikce hodnot rozvahy'!K4+'Predikce hodnot rozvahy'!K6+'Predikce hodnot rozvahy'!K16 -> 911 | G39: ='Predikce hodnot rozvahy'!L4+'Predikce hodnot rozvahy'!L6+'Predikce hodnot rozvahy'!L16 -> 390 | H39: ='Predikce hodnot rozvahy'!M4+'Predikce hodnot rozvahy'!M6+'Predikce hodnot rozvahy'!M16 -> 469 | I39: ='Predikce hodnot rozvahy'!N4+'Predikce hodnot rozvahy'!N6+'Predikce hodnot rozvahy'!N16 -> 496 | J39: ='Predikce hodnot rozvahy'!O4+'Predikce hodnot rozvahy'!O6+'Predikce hodnot rozvahy'!O16 -> 372 | K39: ='Predikce hodnot rozvahy'!P4+'Predikce hodnot rozvahy'!P6+'Predikce hodnot rozvahy'!P16 -> 306
A40: Koeficient náročnosti růstu tržeb na růst dlouhodobého hmotného majetku (v %) | B40: =(H39-B39)/(H38-B38) -> -0.06304293869 | I40: =(K39-I39)/(K38-I38) -> -0.06401617251

Sheet Ocenění generátory hodnot
A1: Položka | B1: Zkratka | C1: Hodnota
A2: Riziková přirážka za velikost podniku | B2: rla | C2: 0.05
B3: XL1 | C3: 1.73
B4: XL2 | C4: 2.76
A5: Vypočtený ukazatel likvidity (v %, 2016/2017) | C5: ='Poměrová analýza'!H7 -> 2.171293162
A6: Riziková přirážka za tvrobu EBIT | B6: rpod | C6: =(C4-C5)^2/(C4-C3)^2*0.1 -> 0.0326680876
A7: Riziková přirážka za schopnost platit včas | B7: rfinstab | C7: 0
A8: Riziková za dělení EBIT | B8: rfinstru | C8: 0.1
A9: Riziková premie | B9: RP | C9: =C8+C7+C6+C2 -> 0.1826680876
A10: Berzizikový výnos | B10: rf | C10: 0.0098
A11: Náklad vlastního kapitálu | B11: re | C11: =C10+C9 -> 0.1924680876
A12: Náklady na cizí kapitál | B12: rd | C12: 0
A13: Daň z příjmu právnických osob | C13: 0.19
A14: Cizí kapitál | C14: 0
A15: Dlouhodobý vlastní kapitál | C15: ='Predikce hodnot rozvahy'!M81 -> 7128
A16: Vážené náklady kapitálu | B16: WACC | C16: =C12*(1-C13)*C14/(C14+C15)+C11*C15/(C15+C14) -> 0.1924680876
A18: Rok | B18: Pesimistická | C18: Mírně pesimistická | D18: Střední | E18: Mírně optimistická | F18: Optimistická
A19: Tržby v roce 2016 / 2017 (v tisícíck Kč) | B19: ='Analýza generátorů hodnot'!H2 -> 36999 | C19: ='Analýza generátorů hodnot'!H2 -> 36999 | D19: ='Analýza generátorů hodnot'!H2 -> 36999 | E19: ='Analýza generátorů hodnot'!H2 -> 36999 | F19: ='Analýza generátorů hodnot'!H2 -> 36999
A20: Tempo růstu tržeb (v %) | B20: 0.0015 | C20: 0.0065 | D20: ='Analýza generátorů hodnot'!I4 -> 0.01149145007 | E20: 0.04 | F20: 0.068
A21: ='Analýza generátorů hodnot'!A24 -> Průměrná zisková marže po dani (v %) | B21: 0.0517 | C21: 0.0617 | D21: ='Analýza generátorů hodnot'!I24 -> 0.07172896535 | E21: 0.0865 | F21: 0.1012
A22: Sazba daně z příjmu právnických osob (v %) | B22: 0.19 | C22: 0.19 | D22: 0.19 | E22: 0.19 | F22: 0.19
A23: ='Analýza generátorů hodnot'!A35 -> Koeficient náročnosti růstu tržeb na růst pracovního kapitálu (v %) | B23: 0.9 | C23: 0.8 | D23: ='Analýza generátorů hodnot'!I35 -> 0.7092318059 | E23: 0.6 | F23: 0.5
A24: ='Analýza generátorů hodnot'!A40 -> Koeficient náročnosti růstu tržeb na růst dlouhodobého hmotného majetku (v %) | B24: -0.1 | C24: -0.08 | D24: ='Analýza generátorů hodnot'!I40 -> -0.06401617251 | E24: -0.04 | F24: -0.035
A25: Diskontní míra (v %) | B25: 0.2125 | C25: 0.2025 | D25: =C16 -> 0.1924680876 | E25: 0.1825 | F25: 0.1725
A26: Hodnota podniku brutto (v milionech Kč) | B26: =(B19*(1+B20)*B21*(1-B22)-B19*B20*(B23+B24))/(B25-B20) -> 7143.75561 | C26: =(C19*(1+C20)*C21*(1-C22)-C19*C20*(C23+C24))/(C25-C20) -> 8612.05534 | D26: =(D19*(1+D20)*D21*(1-D22)-D19*D20*(D23+D24))/(D25-D20) -> 10498.78034 | E26: =(E19*(1+E20)*E21*(1-E22)-E19*E20*(E23+E24))/(E25-E20) -> 13103.51391 | F26: =(F19*(1+F20)*F21*(1-F22)-F19*F20*(F23+F24))/(F25-F20) -> 19801.04905

Sheet Ocenění DCF
A1: Položka (v tisících Kč) | B1: 2010 | C1: 2011 | D1: 2012 | E1: 2013 | F1: 2014 | G1: 2015 | H1: 2016 / 2017 | I1: 2017/2018 | J1: 2018/2019 | K1: 2019/2020
A2: Peněžní prostředky v pokladně | B2: ='Predikce hodnot rozvahy'!G74 -> 38 | C2: ='Predikce hodnot rozvahy'!H74 -> 78 | D2: ='Predikce hodnot rozvahy'!I74 -> 54 | E2: ='Predikce hodnot rozvahy'!J74 -> 89 | F2: ='Predikce hodnot rozvahy'!K74 -> 71 | G2: ='Predikce hodnot rozvahy'!L74 -> 44 | H2: ='Predikce hodnot rozvahy'!M74 -> 39 | I2: ='Predikce hodnot rozvahy'!N74 -> 53 | J2: ='Predikce hodnot rozvahy'!O74 -> 51 | K2: ='Predikce hodnot rozvahy'!P74 -> 50
A3: Peněžní prostředky na účtech | B3: ='Predikce hodnot rozvahy'!G75 -> 8457 | C3: ='Predikce hodnot rozvahy'!H75 -> 4817 | D3: ='Predikce hodnot rozvahy'!I75 -> 4402 | E3: ='Predikce hodnot rozvahy'!J75 -> 9233 | F3: ='Predikce hodnot rozvahy'!K75 -> 8452 | G3: ='Predikce hodnot rozvahy'!L75 -> 10892 | H3: ='Predikce hodnot rozvahy'!M75 -> 4367 | I3: ='Predikce hodnot rozvahy'!N75 -> 8782 | J3: ='Predikce hodnot rozvahy'!O75 -> 9015 | K3: ='Predikce hodnot rozvahy'!P75 -> 8056
A4: Krátkodobé závazky | B4: ='Predikce hodnot rozvahy'!G123 -> 4317 | C4: ='Predikce hodnot rozvahy'!H123 -> 3859 | D4: ='Predikce hodnot rozvahy'!I123 -> 4925 | E4: ='Predikce hodnot rozvahy'!J123 -> 5377 | F4: ='Predikce hodnot rozvahy'!K123 -> 2887 | G4: ='Predikce hodnot rozvahy'!L123 -> 2243 | H4: ='Predikce hodnot rozvahy'!M123 -> 7385 | I4: ='Predikce hodnot rozvahy'!N123 -> 4781 | J4: ='Predikce hodnot rozvahy'!O123 -> 5034 | K4: ='Predikce hodnot rozvahy'!P123 -> 5286
A5: Likvidita | B5: =(B2+B3)/B4 -> 1.967801714 | C5: =(C2+C3)/C4 -> 1.268463332 | D5: 0.9047715736 | E5: 1.733680491 | F5: 2.952199515 | G5: 4.875613018 | H5: 0.5966147596 | I5: 1.847939762 | J5: 1.800953516 | K5: 1.533484677
A6: Ukazatel likvidity | B6: ='Poměrová analýza'!B9 -> 1.967801714 | C6: ='Poměrová analýza'!C9 -> 1.268463332 | D6: ='Poměrová analýza'!D9 -> 0.9047715736 | E6: ='Poměrová analýza'!E9 -> 1.733680491 | F6: ='Poměrová analýza'!F9 -> 2.952199515 | G6: ='Poměrová analýza'!G9 -> 4.875613018 | H6: ='Poměrová analýza'!H9 -> 0.5966147596 | I6: x | J6: x | K6: x
A7: Provozně nutné peněžní prostředky | B7: =B3+B2 -> 8495 | C7: =C3+C2 -> 4895 | D7: 4456 | E7: 9322 | F7: 8523 | G7: 10936 | H7: 4406 | I7: 8835 | J7: 9066 | K7: 8106
A9: Položka (v tisících Kč) | B9: 2010 | C9: 2011 | D9: 2012 | E9: 2013 | F9: 2014 | G9: 2015 | H9: 2016 / 2017 | I9: 2017/2018 | J9: 2018/2019 | K9: 2019/2020
A10: Pohledávky za upsaný základní kapitál | B10: ='Predikce hodnot rozvahy'!G4 -> 0 | C10: ='Predikce hodnot rozvahy'!H4 -> 0 | D10: ='Predikce hodnot rozvahy'!I4 -> 0 | E10: ='Predikce hodnot rozvahy'!J4 -> 0 | F10: ='Predikce hodnot rozvahy'!K4 -> 0 | G10: ='Predikce hodnot rozvahy'!L4 -> 0 | H10: ='Predikce hodnot rozvahy'!M4 -> 0 | I10: ='Predikce hodnot rozvahy'!N4 -> 0 | J10: ='Predikce hodnot rozvahy'!O4 -> 0 | K10: ='Predikce hodnot rozvahy'!P4 -> 0
A11: Dlouhodobý nehmotný majetek | B11: ='Predikce hodnot rozvahy'!G6 -> 0 | C11: ='Predikce hodnot rozvahy'!H6 -> 0 | D11: ='Predikce hodnot rozvahy'!I6 -> 736 | E11: ='Predikce hodnot rozvahy'!J6 -> 0 | F11: ='Predikce hodnot rozvahy'!K6 -> 0 | G11: ='Predikce hodnot rozvahy'!L6 -> 0 | H11: ='Predikce hodnot rozvahy'!M6 -> 0 | I11: ='Predikce hodnot rozvahy'!N6 -> 0 | J11: ='Predikce hodnot rozvahy'!O6 -> 0 | K11: ='Predikce hodnot rozvahy'!P6 -> 0
A12: Dlouhodobý hmotný majetek | B12: ='Predikce hodnot rozvahy'!G16 -> 977 | C12: ='Predikce hodnot rozvahy'!H16 -> 1498 | D12: ='Predikce hodnot rozvahy'!I16 -> 1497 | E12: ='Predikce hodnot rozvahy'!J16 -> 1204 | F12: ='Predikce hodnot rozvahy'!K16 -> 911 | G12: ='Predikce hodnot rozvahy'!L16 -> 390 | H12: ='Predikce hodnot rozvahy'!M16 -> 469 | I12: ='Predikce hodnot rozvahy'!N16 -> 496 | J12: ='Predikce hodnot rozvahy'!O16 -> 372 | K12: ='Predikce hodnot rozvahy'!P16 -> 306
A13: Dlouhodobý majetek provozně nutný | B13: =SUM(B10:B12) -> 977 | C13: =SUM(C10:C12) -> 1498 | D13: 2233 | E13: 1204 | F13: 911 | G13: 390 | H13: 469 | I13: 496 | J13: 372 | K13: 306
A14: Zásoby | B14: ='Predikce hodnot rozvahy'!G40 -> 3 | C14: ='Predikce hodnot rozvahy'!H40 -> 1538 | D14: ='Predikce hodnot rozvahy'!I40 -> 99 | E14: ='Predikce hodnot rozvahy'!J40 -> 840 | F14: ='Predikce hodnot rozvahy'!K40 -> 317 | G14: ='Predikce hodnot rozvahy'!L40 -> 234 | H14: ='Predikce hodnot rozvahy'!M40 -> 0 | I14: ='Predikce hodnot rozvahy'!N40 -> 0 | J14: ='Predikce hodnot rozvahy'!O40 -> 0 | K14: ='Predikce hodnot rozvahy'!P40 -> 0
A15: Pohledávky | B15: ='Predikce hodnot rozvahy'!G48 -> 4263 | C15: ='Predikce hodnot rozvahy'!H48 -> 3980 | D15: ='Predikce hodnot rozvahy'!I48 -> 4994 | E15: ='Predikce hodnot rozvahy'!J48 -> 7022 | F15: ='Predikce hodnot rozvahy'!K48 -> 3897 | G15: ='Predikce hodnot rozvahy'!L48 -> 1964 | H15: ='Predikce hodnot rozvahy'!M48 -> 11629 | I15: ='Predikce hodnot rozvahy'!N48 -> 7817 | J15: ='Predikce hodnot rozvahy'!O48 -> 7963 | K15: ='Predikce hodnot rozvahy'!P48 -> 9214
A16: Provozně nutné peněžní prostředky | B16: =B7 -> 8495 | C16: =C7 -> 4895 | D16: 4456 | E16: 9322 | F16: 8523 | G16: 10936 | H16: 4406 | I16: 8835 | J16: 9066 | K16: 8106
A17: Ostatní aktiva | B17: ='Predikce hodnot rozvahy'!G76 -> 1606 | C17: ='Predikce hodnot rozvahy'!H76 -> 3075 | D17: ='Predikce hodnot rozvahy'!I76 -> 2713 | E17: ='Predikce hodnot rozvahy'!J76 -> 1445 | F17: ='Predikce hodnot rozvahy'!K76 -> 1888 | G17: ='Predikce hodnot rozvahy'!L76 -> 1111 | H17: ='Predikce hodnot rozvahy'!M76 -> 166 | I17: ='Predikce hodnot rozvahy'!N76 -> 1419 | J17: ='Predikce hodnot rozvahy'!O76 -> 2413 | K17: ='Predikce hodnot rozvahy'!P76 -> 2988
A18: Krátkodobé závazky | B18: ='Predikce hodnot rozvahy'!G123 -> 4317 | C18: ='Predikce hodnot rozvahy'!H123 -> 3859 | D18: ='Predikce hodnot rozvahy'!I123 -> 4925 | E18: ='Predikce hodnot rozvahy'!J123 -> 5377 | F18: ='Predikce hodnot rozvahy'!K123 -> 2887 | G18: ='Predikce hodnot rozvahy'!L123 -> 2243 | H18: ='Predikce hodnot rozvahy'!M123 -> 7385 | I18: ='Predikce hodnot rozvahy'!N123 -> 4781 | J18: ='Predikce hodnot rozvahy'!O123 -> 5034 | K18: ='Predikce hodnot rozvahy'!P123 -> 5286
A19: Ostatní pasiva | B19: ='Predikce hodnot rozvahy'!G139 -> 4073 | C19: ='Predikce hodnot rozvahy'!H139 -> 2805 | D19: ='Predikce hodnot rozvahy'!I139 -> 2118 | E19: ='Predikce hodnot rozvahy'!J139 -> 4445 | F19: ='Predikce hodnot rozvahy'!K139 -> 4004 | G19: ='Predikce hodnot rozvahy'!L139 -> 2280 | H19: ='Predikce hodnot rozvahy'!M139 -> 2051 | I19: ='Predikce hodnot rozvahy'!N139 -> 2364 | J19: ='Predikce hodnot rozvahy'!O139 -> 2178 | K19: ='Predikce hodnot rozvahy'!P139 -> 1991
A20: Provozně nutný pracovní kapitál | B20: =B14+B15+B16+B17-B18-B19 -> 5977 | C20: =C14+C15+C16+C17-C18-C19 -> 6824 | D20: 5219 | E20: 8807 | F20: 7734 | G20: 9722 | H20: 6765 | I20: 10926 | J20: 12230 | K20: 13031
A21: Provozně nutný pracovní kapitál | B21: =B20+B13 -> 6954 | C21: =C20+C13 -> 8322 | D21: 7452 | E21: 10011 | F21: 8645 | G21: 10112 | H21: 7234 | I21: 11422 | J21: 12602 | K21: 13337
A23: Položka (v tisících Kč) | B23: 2010 | C23: 2011 | D23: 2012 | E23: 2013 | F23: 2014 | G23: 2015 | H23: 2016 / 2017 | I23: 2017/2018 | J23: 2018/2019 | K23: 2019/2020
A24: Provozní výsledek hospodaření za období | B24: ='Predikce hodnot výkazovky'!D28 -> 3097 | C24: ='Predikce hodnot výkazovky'!E28 -> 4477 | D24: ='Predikce hodnot výkazovky'!F28 -> 1732 | E24: ='Predikce hodnot výkazovky'!G28 -> 4633 | F24: ='Predikce hodnot výkazovky'!H28 -> 3522 | G24: ='Predikce hodnot výkazovky'!I28 -> 4520 | H24: ='Predikce hodnot výkazovky'!J28 -> -2915 | I24: ='Predikce hodnot výkazovky'!K28 -> 2798 | J24: ='Predikce hodnot výkazovky'!L28 -> 3376 | K24: ='Predikce hodnot výkazovky'!M28 -> 3499
A25: Tržby z prodeje dlouhodobého majetku a materiálu | B25: ='Predikce hodnot výkazovky'!D20 -> 0 | C25: ='Predikce hodnot výkazovky'!E20 -> 22 | D25: ='Predikce hodnot výkazovky'!F20 -> 0 | E25: ='Predikce hodnot výkazovky'!G20 -> 0 | F25: ='Predikce hodnot výkazovky'!H20 -> 0 | G25: ='Predikce hodnot výkazovky'!I20 -> 299 | H25: ='Predikce hodnot výkazovky'!J20 -> 35 | I25: ='Predikce hodnot výkazovky'!K20 -> 0 | J25: ='Predikce hodnot výkazovky'!L20 -> 0 | K25: ='Predikce hodnot výkazovky'!M20 -> 0
A26: Zůstatková cena prodaného dlouhodobého majetku a materiálu | B26: ='Predikce hodnot výkazovky'!D24 -> 0 | C26: ='Predikce hodnot výkazovky'!E24 -> 0 | D26: ='Predikce hodnot výkazovky'!F24 -> 0 | E26: ='Predikce hodnot výkazovky'!G24 -> 490 | F26: ='Predikce hodnot výkazovky'!H24 -> 0 | G26: ='Predikce hodnot výkazovky'!I24 -> 391 | H26: ='Predikce hodnot výkazovky'!J24 -> 0 | I26: ='Predikce hodnot výkazovky'!K24 -> 0 | J26: ='Predikce hodnot výkazovky'!L24 -> 0 | K26: ='Predikce hodnot výkazovky'!M24 -> 0
A27: Zisk z prodaného dlouhodobého majetku a materiálu | B27: =B25-B26 -> 0 | C27: =C25-C26 -> 22 | D27: 0 | E27: -490 | F27: 0 | G27: -92 | H27: 35 | I27: 0 | J27: 0 | K27: 0
A28: Korigovaný provozní výsledek hospodaření | B28: =B24-B27 -> 3097 | C28: =C24-C27 -> 4455 | D28: 1732 | E28: 5123 | F28: 3522 | G28: 4612 | H28: -2950 | I28: 2798 | J28: 3376 | K28: 3499
A31: Položka (v tisících Kč) | B31: 2010 | C31: 2011 | D31: 2012 | E31: 2013 | F31: 2014 | G31: 2015 | H31: 2016 / 2017 | I31: 2017/2018 | J31: 2018/2019 | K31: 2019/2020
A32: Období | I32: 1 | J32: 2 | K32: 3
A33: Korigovaný provozní výsledek hospodaření (v tisících Kč) | B33: =B28 -> 3097 | C33: 4455 | D33: 1732 | E33: 5123 | F33: 3522 | G33: 4612 | H33: -2950 | I33: 2798 | J33: 3376 | K33: 3499
A34: Daň z příjmu právnických osob | B34: =B33*0.19 -> 588.43 | C34: =C33*0.19 -> 846.45 | D34: 329.08 | E34: 973.37 | F34: 669.18 | G34: 876.28 | H34: -560.5 | I34: 531.62 | J34: 641.44 | K34: 664.81
A35: Korigovaný hospodářský výsledek po zdanění | B35: =B33-B34 -> 2508.57 | C35: =C33-C34 -> 3608.55 | D35: 1402.92 | E35: 4149.63 | F35: 2852.82 | G35: 3735.72 | H35: -2389.5 | I35: 2266.38 | J35: 2734.56 | K35: 2834.19
A36: Odpisy | B36: 0 | C36: 0 | D36: 0 | E36: 0 | F36: 0 | G36: 0 | H36: 0 | I36: 0 | J36: 0 | K36: 0
A37: Ostatní náklady (rezervy) | B37: ='Predikce hodnot rozvahy'!G104 -> 0 | C37: ='Predikce hodnot rozvahy'!H104 -> 0 | D37: ='Predikce hodnot rozvahy'!I104 -> 0 | E37: ='Predikce hodnot rozvahy'!J104 -> 0 | F37: ='Predikce hodnot rozvahy'!K104 -> 0 | G37: ='Predikce hodnot rozvahy'!L104 -> 0 | H37: ='Predikce hodnot rozvahy'!M104 -> 106 | I37: ='Predikce hodnot rozvahy'!N104 -> 0 | J37: ='Predikce hodnot rozvahy'!O104 -> 0 | K37: ='Predikce hodnot rozvahy'!P104 -> 0
A38: Předběžné CF z provozní činnosti | B38: =B37+B36+B35 -> 2508.57 | C38: =C37+C36+C35 -> 3608.55 | D38: 1402.92 | E38: 4149.63 | F38: 2852.82 | G38: 3735.72 | H38: -2283.5 | I38: 2266.38 | J38: 2734.56 | K38: 2834.19
A39: Investice do provozně nutného dlouhodobého majetku
A40: Investice do provozně nutného PK
A41: Volný peněžní tok | B41: =B38-B39-B40 -> 2508.57 | C41: =C38-C39-C40 -> 3608.55 | D41: 1402.92 | E41: 4149.63 | F41: 2852.82 | G41: 3735.72 | H41: -2283.5 | I41: 2266.38 | J41: 2734.56 | K41: 2834.19
B43: Pesimistická | C43: Mírně pesimistická | D43: Střední | E43: Mírně optimistická | F43: Optimistická
A44: Současná hodnota 1. fáze | B44: =$I$41/(1+B49)^$I$32+$J$41/(1+B49)^$J$32+$K$41/(1+B49)^$K$32 -> 5319.177495 | C44: =$I$41/(1+C49)^$I$32+$J$41/(1+C49)^$J$32+$K$41/(1+C49)^$K$32 -> 5405.783489 | D44: =$I$41/(1+D49)^$I$32+$J$41/(1+D49)^$J$32+$K$41/(1+D49)^$K$32 -> 5495.075813 | E44: =$I$41/(1+E49)^$I$32+$J$41/(1+E49)^$J$32+$K$41/(1+E49)^$K$32 -> 5586.281519 | F44: =$I$41/(1+F49)^$I$32+$J$41/(1+F49)^$J$32+$K$41/(1+F49)^$K$32 -> 5680.359821
A45: KPVHpodani | B45: =$K$35 -> 2834.19 | C45: =$K$35 -> 2834.19 | D45: =$K$35 -> 2834.19 | E45: =$K$35 -> 2834.19 | F45: =$K$35 -> 2834.19
A46: g | B46: ='Ocenění generátory hodnot'!B20 -> 0.0015 | C46: ='Ocenění generátory hodnot'!C20 -> 0.0065 | D46: ='Ocenění generátory hodnot'!D20 -> 0.01149145007 | E46: ='Ocenění generátory hodnot'!E20 -> 0.04 | F46: ='Ocenění generátory hodnot'!F20 -> 0.068
A47: Investovaný kapitál provozně nutný | B47: =$K$21 -> 13337 | C47: =$K$21 -> 13337 | D47: =$K$21 -> 13337 | E47: =$K$21 -> 13337 | F47: =$K$21 -> 13337
A48: FCF2020/2021 | B48: =B45*(1+B46)-(B47*(1+B46)-B47) -> 2818.435785 | C48: =C45*(1+C46)-(C47*(1+C46)-C47) -> 2765.921735 | D48: =D45*(1+D46)-(D47*(1+D46)-D47) -> 2713.497483 | E48: =E45*(1+E46)-(E47*(1+E46)-E47) -> 2414.0776 | F48: =F45*(1+F46)-(F47*(1+F46)-F47) -> 2119.99892
A49: ik | B49: ='Ocenění generátory hodnot'!B25 -> 0.2125 | C49: ='Ocenění generátory hodnot'!C25 -> 0.2025 | D49: ='Ocenění generátory hodnot'!D25 -> 0.1924680876 | E49: ='Ocenění generátory hodnot'!E25 -> 0.1825 | F49: ='Ocenění generátory hodnot'!F25 -> 0.1725
A50: PHt | B50: =B48/(B49-B46) -> 13357.51557 | C50: =C48/(C49-C46) -> 14111.84559 | D50: =D48/(D49-D46) -> 14993.6341 | E50: =E48/(E49-E46) -> 16940.89544 | F50: =F48/(F49-F46) -> 20287.071
A51: Současná hodnota 2. fáze | B51: =B50/(1+B49)^3 -> 7493.42642 | C51: =C50/(1+C49)^3 -> 8115.748134 | D51: =D50/(1+D49)^3 -> 8842.32782 | E51: =E50/(1+E49)^3 -> 10245.49425 | F51: =F50/(1+F49)^3 -> 12585.7991
A52: Provozní hodnota brutto | B52: =B51+B44 -> 12812.60391 | C52: =C51+C44 -> 13521.53162 | D52: =D51+D44 -> 14337.40363 | E52: =E51+E44 -> 15831.77576 | F52: =F51+F44 -> 18266.15892
A53: Úročený cizí kapitál k datu ocenění | B53: 0 | C53: 0 | D53: 0 | E53: 0 | F53: 0
A54: Provozně nenutný maejtek | B54: 0 | C54: 0 | D54: 0 | E54: 0 | F54: 0
A55: Hodnota podniku netto | B55: =(B52-B53+B54) -> 12812.60391 | C55: =(C52-C53+C54) -> 13521.53162 | D55: =(D52-D53+D54) -> 14337.40363 | E55: 15831.77576 | F55: 18266.15892

Sheet Ocenění EVA
A1: Rok | B1: 2010 | C1: 2011 | D1: 2012 | E1: 2013 | F1: 2014 | G1: 2015 | H1: 2016 / 2017 | I1: 2017/2018 | J1: 2018/2019 | K1: 2019/2020
A2: Období | I2: 1 | J2: 2 | K2: 3
A3: NOPAT | B3: ='Ocenění DCF'!B28 -> 3097 | C3: ='Ocenění DCF'!C28 -> 4455 | D3: ='Ocenění DCF'!D28 -> 1732 | E3: ='Ocenění DCF'!E28 -> 5123 | F3: ='Ocenění DCF'!F28 -> 3522 | G3: ='Ocenění DCF'!G28 -> 4612 | H3: ='Ocenění DCF'!H28 -> -2950 | I3: ='Ocenění DCF'!I28 -> 2798 | J3: ='Ocenění DCF'!J28 -> 3376 | K3: ='Ocenění DCF'!K28 -> 3499
A4: NOA | B4: ='Ocenění DCF'!B21 -> 6954 | C4: ='Ocenění DCF'!C21 -> 8322 | D4: ='Ocenění DCF'!D21 -> 7452 | E4: ='Ocenění DCF'!E21 -> 10011 | F4: ='Ocenění DCF'!F21 -> 8645 | G4: ='Ocenění DCF'!G21 -> 10112 | H4: ='Ocenění DCF'!H21 -> 7234 | I4: ='Ocenění DCF'!I21 -> 11422 | J4: ='Ocenění DCF'!J21 -> 12602 | K4: ='Ocenění DCF'!K21 -> 13337
B7: ='Ocenění generátory hodnot'!B18 -> Pesimistická | C7: ='Ocenění generátory hodnot'!C18 -> Mírně pesimistická | D7: ='Ocenění generátory hodnot'!D18 -> Střední | E7: ='Ocenění generátory hodnot'!E18 -> Mírně optimistická | F7: ='Ocenění generátory hodnot'!F18 -> Optimistická
A8: Současná hodnota 1. fáze | B8: =($I$3-$I$4*B10)/(1+B10)^$I$2+($J$3-$J$4*B10)/(1+B10)^$J$2+($K$3-$K$4*B10)/(B10+1)^$K$2 -> 1153.660461 | C8: =($I$3-$I$4*C10)/(1+C10)^$I$2+($J$3-$J$4*C10)/(1+C10)^$J$2+($K$3-$K$4*C10)/(C10+1)^$K$2 -> 1432.354261 | D8: =($I$3-$I$4*D10)/(1+D10)^$I$2+($J$3-$J$4*D10)/(1+D10)^$J$2+($K$3-$K$4*D10)/(D10+1)^$K$2 -> 1720.961467 | E8: =($I$3-$I$4*E10)/(1+E10)^$I$2+($J$3-$J$4*E10)/(1+E10)^$J$2+($K$3-$K$4*E10)/(E10+1)^$K$2 -> 2017.056813 | F8: =($I$3-$I$4*F10)/(1+F10)^$I$2+($J$3-$J$4*F10)/(1+F10)^$J$2+($K$3-$K$4*F10)/(F10+1)^$K$2 -> 2323.830822
A9: EVA 2020/2021 | B9: =$K$3*(1+B10)-$K$4*B10 -> 1408.425 | C9: =$K$3*(1+C10)-$K$4*C10 -> 1506.805 | D9: =$K$3*(1+D10)-$K$4*D10 -> 1605.498954 | E9: =$K$3*(1+E10)-$K$4*E10 -> 1703.565 | F9: =$K$3*(1+F10)-$K$4*F10 -> 1801.945
A10: WACC | B10: ='Ocenění generátory hodnot'!B25 -> 0.2125 | C10: ='Ocenění generátory hodnot'!C25 -> 0.2025 | D10: ='Ocenění generátory hodnot'!D25 -> 0.1924680876 | E10: ='Ocenění generátory hodnot'!E25 -> 0.1825 | F10: ='Ocenění generátory hodnot'!F25 -> 0.1725
A11: g | B11: ='Ocenění generátory hodnot'!B20 -> 0.0015 | C11: ='Ocenění generátory hodnot'!C20 -> 0.0065 | D11: ='Ocenění generátory hodnot'!D20 -> 0.01149145007 | E11: ='Ocenění generátory hodnot'!E20 -> 0.04 | F11: ='Ocenění generátory hodnot'!F20 -> 0.068
A12: PH | B12: =B9/(B10-B11) -> 6675 | C12: =C9/(C10-C11) -> 7687.780612 | D12: =D9/(D10-D11) -> 8871.305027 | E12: =E9/(E10-E11) -> 11954.84211 | F12: =F9/(F10-F11) -> 17243.49282
A13: Současná hodnota 2. fáze | B13: =B12/(1+B10)^3 -> 3744.605132 | C13: =C12/(1+C10)^3 -> 4421.256651 | D13: =D12/(1+D10)^3 -> 5231.752804 | E13: =E12/(1+E10)^3 -> 7230.034943 | F13: =F12/(1+F10)^3 -> 10697.60817
A14: MVA | B14: =B13+B8 -> 4898.265593 | C14: =C13+C8 -> 5853.610912 | D14: =D13+D8 -> 6952.714272 | E14: =E13+E8 -> 9247.091756 | F14: =F13+F8 -> 13021.43899
A15: NOA k datu ocenění | B15: =$H$4 -> 7234 | C15: =$H$4 -> 7234 | D15: =$H$4 -> 7234 | E15: =$H$4 -> 7234 | F15: =$H$4 -> 7234
A16: Provozní hodnota brutto | B16: =B15+B14 -> 12132.26559 | C16: =C15+C14 -> 13087.61091 | D16: =D15+D14 -> 14186.71427 | E16: =E15+E14 -> 16481.09176 | F16: =F15+F14 -> 20255.43899
A17: Úročený cizí kapitál k datu ocenění | B17: 0 | C17: 0 | D17: 0 | E17: 0 | F17: 0
A18: Provozní hodnota netto | B18: =B16-B17 -> 12132.26559 | C18: =C16-C17 -> 13087.61091 | D18: =D16-D17 -> 14186.71427 | E18: =E16-E17 -> 16481.09176 | F18: =F16-F17 -> 20255.43899
A19: Neprovozní majetek k datu ocenění | B19: 0 | C19: 0 | D19: 0 | E19: 0 | F19: 0
A20: Výsledná hodnota vlastního kapitálu | B20: =(B18+B19) -> 12132.26559 | C20: =(C18+C19) -> 13087.61091 | D20: =(D18+D19) -> 14186.71427 | E20: 16481.09176 | F20: 20255.43899

Sheet Ocenění shrnutí (hidden)
C1: Pesimistická varianta | D1: Mírně pesimistická varianta | E1: Střední varianta | F1: Mírně optimistická varianta | G1: Optimistická varianta
B2: Ocenění podle generátorů hodnot | C2: ='Ocenění generátory hodnot'!B26 -> 7143.75561 | D2: ='Ocenění generátory hodnot'!C26 -> 8612.05534 | E2: ='Ocenění generátory hodnot'!D26 -> 10498.78034 | F2: ='Ocenění generátory hodnot'!E26 -> 13103.51391 | G2: ='Ocenění generátory hodnot'!F26 -> 19801.04905
B3: Ocenění podle DCF | C3: ='Ocenění DCF'!B55 -> 12812.60391 | D3: ='Ocenění DCF'!C55 -> 13521.53162 | E3: ='Ocenění DCF'!D55 -> 14337.40363 | F3: ='Ocenění DCF'!E55 -> 15831.77576 | G3: ='Ocenění DCF'!F55 -> 18266.15892
B4: Ocenění podle EVA | C4: ='Ocenění EVA'!B20 -> 12132.26559 | D4: ='Ocenění EVA'!C20 -> 13087.61091 | E4: ='Ocenění EVA'!D20 -> 14186.71427 | F4: ='Ocenění EVA'!E20 -> 16481.09176 | G4: ='Ocenění EVA'!F20 -> 20255.43899

Sheet Citlivostní analýza
A2: Citlivostní analýza
C8: Pomocná hodnota diskontní sazby | D8: 10 | H8: 192 | J8: Pomocná hodnota růstu tržeb | K8: 10 | O8: 105
C9: Druh změny | H9: 2 | J9: Druh změny | O9: 1
C10: Absolutní změna | H10: 24 | J10: Absolutní změna | O10: 10
C11: Relativní změna | H11: 20 | J11: Relativní změna | O11: 25
B13: Diskontní sazba
B15: Prosím, zvolte hodnotu diskontní sazby
C21: 0 | F21: 0.1 | J21: 0.2 | M21: 0.3
B23: Prosím zvolte změnu mezi variantami a hodnotu této změny
F27: 0 | I27: 0.15 | M27: 0.3
F30: 0 | I30: 0.25 | M30: 0.05
B32: Aktuální hodnota diskontní sazby | M32: =H8/1000 -> 0.192
B34: =IF(H9=1,"s relativní změnou","s absolutní změnou") -> s absolutní změnou | M34: =IF(H9=1,H11/100,H10/1000) -> 0.024
B37: Tempo růstu tržeb
B39: Prosím, zvolte hodnotu růstu tržeb
C45: -0.1 | E45: -0.05 | H45: 0 | K45: 0.05 | M45: 0.1
B47: Prosím zvolte změnu mezi variantami a hodnotu této změny
F51: 0 | M51: 1
F54: 0 | M54: 0.07
B56: Aktuální hodnota růstu tržeb | M56: =(O8-100)/1000 -> 0.005
B58: =IF(O9=1,"s relativní změnou","s absolutní změnou") -> s relativní změnou | M58: =IF(O9=1,O11/100,O10/1000) -> 0.25

Sheet Citlivostní analýza - výpočet (hidden)
A1: Položka | B1: 2010 | C1: 2011 | D1: 2012 | E1: 2013 | F1: 2014 | G1: 2015 | H1: 2016 / 2017 | I1: 2017/2018 | J1: 2018/2019 | K1: 2019/2020
A2: Období | I2: 1 | J2: 2 | K2: 3
A3: ='Ocenění DCF'!A41 -> Volný peněžní tok | B3: ='Ocenění DCF'!B41 -> 2508.57 | C3: ='Ocenění DCF'!C41 -> 3608.55 | D3: ='Ocenění DCF'!D41 -> 1402.92 | E3: ='Ocenění DCF'!E41 -> 4149.63 | F3: ='Ocenění DCF'!F41 -> 2852.82 | G3: ='Ocenění DCF'!G41 -> 3735.72 | H3: ='Ocenění DCF'!H41 -> -2283.5 | I3: ='Ocenění DCF'!I41 -> 2266.38 | J3: ='Ocenění DCF'!J41 -> 2734.56 | K3: ='Ocenění DCF'!K41 -> 2834.19
A4: ='Ocenění DCF'!A35 -> Korigovaný hospodářský výsledek po zdanění | B4: ='Ocenění DCF'!B35 -> 2508.57 | C4: ='Ocenění DCF'!C35 -> 3608.55 | D4: ='Ocenění DCF'!D35 -> 1402.92 | E4: ='Ocenění DCF'!E35 -> 4149.63 | F4: ='Ocenění DCF'!F35 -> 2852.82 | G4: ='Ocenění DCF'!G35 -> 3735.72 | H4: ='Ocenění DCF'!H35 -> -2389.5 | I4: ='Ocenění DCF'!I35 -> 2266.38 | J4: ='Ocenění DCF'!J35 -> 2734.56 | K4: ='Ocenění DCF'!K35 -> 2834.19
A5: ='Ocenění DCF'!A21 -> Provozně nutný pracovní kapitál | B5: ='Ocenění DCF'!B21 -> 6954 | C5: ='Ocenění DCF'!C21 -> 8322 | D5: ='Ocenění DCF'!D21 -> 7452 | E5: ='Ocenění DCF'!E21 -> 10011 | F5: ='Ocenění DCF'!F21 -> 8645 | G5: ='Ocenění DCF'!G21 -> 10112 | H5: ='Ocenění DCF'!H21 -> 7234 | I5: ='Ocenění DCF'!I21 -> 11422 | J5: ='Ocenění DCF'!J21 -> 12602 | K5: ='Ocenění DCF'!K21 -> 13337
A6: Tržby | B6: ='Analýza generátorů hodnot'!B2 -> 28941 | C6: ='Analýza generátorů hodnot'!C2 -> 25757 | D6: ='Analýza generátorů hodnot'!D2 -> 28720 | E6: ='Analýza generátorů hodnot'!E2 -> 25447 | F6: ='Analýza generátorů hodnot'!F2 -> 22708 | G6: ='Analýza generátorů hodnot'!G2 -> 22836 | H6: ='Analýza generátorů hodnot'!H2 -> 36999 | I6: ='Analýza generátorů hodnot'!I2 -> 35193 | J6: ='Analýza generátorů hodnot'!J2 -> 35737 | K6: ='Analýza generátorů hodnot'!K2 -> 38161
A7: ='Ocenění EVA'!A3 -> NOPAT | B7: ='Ocenění EVA'!B3 -> 3097 | C7: ='Ocenění EVA'!C3 -> 4455 | D7: ='Ocenění EVA'!D3 -> 1732 | E7: ='Ocenění EVA'!E3 -> 5123 | F7: ='Ocenění EVA'!F3 -> 3522 | G7: ='Ocenění EVA'!G3 -> 4612 | H7: ='Ocenění EVA'!H3 -> -2950 | I7: ='Ocenění EVA'!I3 -> 2798 | J7: ='Ocenění EVA'!J3 -> 3376 | K7: ='Ocenění EVA'!K3 -> 3499
A8: ='Ocenění EVA'!A4 -> NOA | B8: ='Ocenění EVA'!B4 -> 6954 | C8: ='Ocenění EVA'!C4 -> 8322 | D8: ='Ocenění EVA'!D4 -> 7452 | E8: ='Ocenění EVA'!E4 -> 10011 | F8: ='Ocenění EVA'!F4 -> 8645 | G8: ='Ocenění EVA'!G4 -> 10112 | H8: ='Ocenění EVA'!H4 -> 7234 | I8: ='Ocenění EVA'!I4 -> 11422 | J8: ='Ocenění EVA'!J4 -> 12602 | K8: ='Ocenění EVA'!K4 -> 13337
A10: Položka | B10: Pesimistická | C10: Mírně pesimistická | D10: Střední | E10: Mírně optimistická | F10: Optimistická
A11: Absolutní změna | B11: =C11-$G$11 -> -0.015 | C11: =D11-$G$11 -> -0.005 | D11: ='Citlivostní analýza'!$M$56 -> 0.005 | E11: =D11+$G$11 -> 0.015 | F11: =E11+$G$11 -> 0.025 | G11: ='Citlivostní analýza'!O10/1000 -> 0.01
A12: Relativní změna | B12: =C12-$D$12*$G$12 -> 0.0025 | C12: =D12-$D$12*$G$12 -> 0.00375 | D12: ='Citlivostní analýza'!$M$56 -> 0.005 | E12: =D12+$D$12*$G$12 -> 0.00625 | F12: =E12+$D$12*$G$12 -> 0.0075 | G12: ='Citlivostní analýza'!O11/100 -> 0.25
A13: g | B13: =IF('Citlivostní analýza'!$O$9=1,B12,B11) -> 0.0025 | C13: =IF('Citlivostní analýza'!$O$9=1,C12,C11) -> 0.00375 | D13: =IF('Citlivostní analýza'!$O$9=1,D12,D11) -> 0.005 | E13: =IF('Citlivostní analýza'!$O$9=1,E12,E11) -> 0.00625 | F13: =IF('Citlivostní analýza'!$O$9=1,F12,F11) -> 0.0075
A14: Absolutní změna | B14: =C14+$G$14 -> 0.24 | C14: =D14+$G$14 -> 0.216 | D14: ='Citlivostní analýza'!$M$32 -> 0.192 | E14: =D14-$G$14 -> 0.168 | F14: =E14-$G$14 -> 0.144 | G14: ='Citlivostní analýza'!H10/1000 -> 0.024
A15: Relativní změna | B15: =C15+$D$15*$G$15 -> 0.2688 | C15: =D15+$D$15*$G$15 -> 0.2304 | D15: ='Citlivostní analýza'!$M$32 -> 0.192 | E15: =D15-$D$15*$G$15 -> 0.1536 | F15: =E15-$D$15*$G$15 -> 0.1152 | G15: ='Citlivostní analýza'!H11/100 -> 0.2
A16: WACC | B16: =IF('Citlivostní analýza'!$H$9=1,B15,B14) -> 0.24 | C16: =IF('Citlivostní analýza'!$H$9=1,C15,C14) -> 0.216 | D16: =IF('Citlivostní analýza'!$H$9=1,D15,D14) -> 0.192 | E16: =IF('Citlivostní analýza'!$H$9=1,E15,E14) -> 0.168 | F16: =IF('Citlivostní analýza'!$H$9=1,F15,F14) -> 0.144
A17: Průměrná zisková marže po dani | B17: =C17-0.01 -> 0.05172896535 | C17: =D17-0.01 -> 0.06172896535 | D17: ='Analýza generátorů hodnot'!I24 -> 0.07172896535 | E17: =D17+0.01 -> 0.08172896535 | F17: =E17+0.01 -> 0.09172896535
A18: Sazba daně z příjmu právnických osob | B18: 0.19
A19: ='Ocenění DCF'!A53 -> Úročený cizí kapitál k datu ocenění | B19: ='Ocenění DCF'!B53 -> 0 | C19: ='Ocenění DCF'!C53 -> 0 | D19: ='Ocenění DCF'!D53 -> 0 | E19: ='Ocenění DCF'!E53 -> 0 | F19: ='Ocenění DCF'!F53 -> 0
A20: ='Ocenění DCF'!A54 -> Provozně nenutný maejtek | B20: ='Ocenění DCF'!B54 -> 0 | C20: ='Ocenění DCF'!C54 -> 0 | D20: ='Ocenění DCF'!D54 -> 0 | E20: ='Ocenění DCF'!E54 -> 0 | F20: ='Ocenění DCF'!F54 -> 0
A21: Koeficient náročnosti růstu tržeb na růst pracovního kapitálu | B21: ='Ocenění generátory hodnot'!B23 -> 0.9 | C21: ='Ocenění generátory hodnot'!C23 -> 0.8 | D21: ='Ocenění generátory hodnot'!D23 -> 0.7092318059 | E21: ='Ocenění generátory hodnot'!E23 -> 0.6 | F21: ='Ocenění generátory hodnot'!F23 -> 0.5
A22: Koeficient náročnosti růstu tržeb na růst dlouhodobého hmotného majetku | B22: =C22-0.02 -> -0.1040161725 | C22: =D22-0.02 -> -0.08401617251 | D22: ='Ocenění generátory hodnot'!D24 -> -0.06401617251 | E22: =D22+0.02 -> -0.04401617251 | F22: =E22+0.02 -> -0.02401617251
A24: Ocenení podle DCF | B24: Pesimistická | C24: Mírně pesimistická | D24: Střední | E24: Mírně optimistická | F24: Optimistická
A25: Současná hodnota 1. fáze | B25: =$I$3/(1+B16)^$I$2+$J$3/(1+B16)^$J$2+$K$3/(1+B16)^$K$2 -> 5092.682295 | C25: =$I$3/(1+C16)^$I$2+$J$3/(1+C16)^$J$2+$K$3/(1+C16)^$K$2 -> 5289.415818 | D25: =$I$3/(1+D16)^$I$2+$J$3/(1+D16)^$J$2+$K$3/(1+D16)^$K$2 -> 5499.302632 | E25: =$I$3/(1+E16)^$I$2+$J$3/(1+E16)^$J$2+$K$3/(1+E16)^$K$2 -> 5723.564733 | F25: =$I$3/(1+F16)^$I$2+$J$3/(1+F16)^$J$2+$K$3/(1+F16)^$K$2 -> 5963.569071
A26: KPVHpodani | B26: =K4 -> 2834.19
A27: Investovaný kapitál provozně nutný | B27: =K5 -> 13337
A28: FCF 2020/2021 | B28: =$B$26*(1+B13)-($B$27*(1+B13)-$B$27) -> 2807.932975 | C28: =$B$26*(1+C13)-($B$27*(1+C13)-$B$27) -> 2794.804463 | D28: =$B$26*(1+D13)-($B$27*(1+D13)-$B$27) -> 2781.67595 | E28: =$B$26*(1+E13)-($B$27*(1+E13)-$B$27) -> 2768.547437 | F28: =$B$26*(1+F13)-($B$27*(1+F13)-$B$27) -> 2755.418925
A29: PHt | B29: =B28/(B16-B13) -> 11822.87568 | C29: =C28/(C16-C13) -> 13167.51219 | D29: =D28/(D16-D13) -> 14875.27246 | E29: =E28/(E16-E13) -> 17116.21291 | F29: =F28/(F16-F13) -> 20186.21923
A30: Současná hodnota 2. fáze | B30: =B29/(1+B16)^3 -> 6200.947688 | C30: =C29/(1+C16)^3 -> 7323.235566 | D30: =D29/(1+D16)^3 -> 8782.864102 | E30: =E29/(1+E16)^3 -> 10741.85168 | F30: =F29/(1+F16)^3 -> 13482.70127
A31: Provozní hodnota brutto | B31: =B30+B25 -> 11293.62998 | C31: =C30+C25 -> 12612.65138 | D31: =D30+D25 -> 14282.16673 | E31: =E30+E25 -> 16465.41642 | F31: =F30+F25 -> 19446.27034
A32: Hodnota podniku netto | B32: =(B31-B19+B20) -> 11293.62998 | C32: =(C31-C19+C20) -> 12612.65138 | D32: =(D31-D19+D20) -> 14282.16673 | E32: =(E31-E19+E20) -> 16465.41642 | F32: =(F31-F19+F20) -> 19446.27034
A34: Ocenění na základě generátorů hodnot | B34: Pesimistická | C34: Mírně pesimistická | D34: Střední | E34: Mírně optimistická | F34: Optimistická
A35: Hodnota podniku brutto | B35: =($H$6*(1+B13)*B17*(1-$B$18)-$H$6*B13*(B21+B22))/(B16-B13) -> 6233.7868 | C35: =($H$6*(1+C13)*C17*(1-$B$18)-$H$6*C13*(C21+C22))/(C16-C13) -> 8280.6332 | D35: =($H$6*(1+D13)*D17*(1-$B$18)-$H$6*D13*(D21+D22))/(D16-D13) -> 10914.68246 | E35: =($H$6*(1+E13)*E17*(1-$B$18)-$H$6*E13*(E21+E22))/(E16-E13) -> 14442.60618 | F35: =($H$6*(1+F13)*F17*(1-$B$18)-$H$6*F13*(F21+F22))/(F16-F13) -> 19322.92066
A37: Ocenění podle EVA | B37: Pesimistická | C37: Mírně pesimistická | D37: Střední | E37: Mírně optimistická | F37: Optimistická
A38: Současná hodnota 1. fáze | B38: =($I$7-$I$8*B16)/(1+B16)^$I$2+($J$7-$J$8*B16)/(1+B16)^$J$2+($K$7-$K$8*B16)/(B16+1)^$K$2 -> 430.7181028 | C38: =($I$7-$I$8*C16)/(1+C16)^$I$2+($J$7-$J$8*C16)/(1+C16)^$J$2+($K$7-$K$8*C16)/(C16+1)^$K$2 -> 1058.173033 | D38: =($I$7-$I$8*D16)/(1+D16)^$I$2+($J$7-$J$8*D16)/(1+D16)^$J$2+($K$7-$K$8*D16)/(D16+1)^$K$2 -> 1734.654735 | E38: =($I$7-$I$8*E16)/(1+E16)^$I$2+($J$7-$J$8*E16)/(1+E16)^$J$2+($K$7-$K$8*E16)/(E16+1)^$K$2 -> 2465.167768 | F38: =($I$7-$I$8*F16)/(1+F16)^$I$2+($J$7-$J$8*F16)/(1+F16)^$J$2+($K$7-$K$8*F16)/(F16+1)^$K$2 -> 3255.34915
A39: EVA 2020/2021 | B39: =$K$7*(1+B16)-$K$8*B16 -> 1137.88 | C39: =$K$7*(1+C16)-$K$8*C16 -> 1373.992 | D39: =$K$7*(1+D16)-$K$8*D16 -> 1610.104 | E39: =$K$7*(1+E16)-$K$8*E16 -> 1846.216 | F39: =$K$7*(1+F16)-$K$8*F16 -> 2082.328
A40: PH | B40: =B39/(B16-B13) -> 4791.073684 | C40: =C39/(C16-C13) -> 6473.460542 | D40: =D39/(D16-D13) -> 8610.181818 | E40: =E39/(E16-E13) -> 11414.00927 | F40: =F39/(F16-F13) -> 15255.15018
A41: Současná hodnota 2. fáze | B41: =B40/(1+B16)^3 -> 2512.857115 | C41: =C40/(1+C16)^3 -> 3600.275875 | D41: =D40/(1+D16)^3 -> 5083.742634 | E41: =E40/(1+E16)^3 -> 7163.243143 | F41: =F40/(1+F16)^3 -> 10189.16075
A42: MVA | B42: =B41+B38 -> 2943.575218 | C42: =C41+C38 -> 4658.448909 | D42: =D41+D38 -> 6818.39737 | E42: =E41+E38 -> 9628.410911 | F42: =F41+F38 -> 13444.5099
A43: NOA k datu ocenění | B43: =$H$8 -> 7234
A44: Provozní hodnota brutto | B44: =$B$43+B42 -> 10177.57522 | C44: =$B$43+C42 -> 11892.44891 | D44: =$B$43+D42 -> 14052.39737 | E44: =$B$43+E42 -> 16862.41091 | F44: =$B$43+F42 -> 20678.5099
A45: Výsledná hodnota vlastního kapitálu | B45: =(B44-B19+B20) -> 10177.57522 | C45: =(C44-C19+C20) -> 11892.44891 | D45: =(D44-D19+D20) -> 14052.39737 | E45: =(E44-E19+E20) -> 16862.41091 | F45: =(F44-F19+F20) -> 20678.5099
A47: Vliv změny 1 % WACC a neměné hodnoty tempa růstu | B47: Pesimistická | C47: Mírně pesimistická | D47: Střední | E47: Mírně optimistická | F47: Optimistická | G47: Průměr
A48: Ocenění podle DCF | B48: 12.92060453 | C48: 13.60628984 | D48: 14.36774628 | E48: 15.21826107 | F48: 16.17442211
A49: Ocenění na základě generátorů hodnot | B49: 6.185928141 | C49: 8.266592603 | D49: 10.55640649 | E49: 13.15797923 | F49: 16.0593918
A50: Ocenění podle EVA | B50: 12.35090419 | C50: 13.2380118 | D50: 14.22091922 | E50: 15.31625824 | F50: 16.54478052
A51: Procentuální změna pro DCF | B51: =B48/C48-1 -> -0.05039473074 | C51: =C48/D48-1 -> -0.05299762568 | D51: X | E51: =E48/D48-1 -> 0.05919611698 | F51: =F48/E48-1 -> 0.0628298482 | G51: =AVERAGE(E51:F51,ABS(B51),ABS(C51)) -> 0.0563545804
A52: Procentuální změna pro generátory hodnot | B52: =B49/C49-1 -> -0.2516955368 | C52: -0.2169122503 | D52: X | E52: =E49/D49-1 -> 0.2464449192 | F52: 0.220505939 | G52: =AVERAGE(E52:F52,ABS(B52),ABS(C52)) -> 0.2338896613
A53: Procentuální změna pro EVA | B53: =B50/C50-1 -> -0.06701214853 | C53: -0.06911701037 | D53: X | E53: =E50/D50-1 -> 0.07702308107 | F53: 0.08021033979 | G53: 0.07334064494
A55: Vliv změny 1 % tempa růstu a neměné hodnoty WACC | B55: Pesimistická | C55: Mírně pesimistická | D55: Střední | E55: Mírně optimistická | F55: Optimistická | G55: Průměr
A56: Ocenění podle DCF | B56: 14.10235033 | C56: 14.22810077 | D56: 14.36774628 | E56: 14.52372461 | F56: 14.69907912
A57: Ocenění na základě generátorů hodnot | B57: 8.962080424 | C57: 9.556682579 | D57: 10.55640649 | E57: 12.0982427 | F57: 14.21319517
A58: Ocenění podle EVA | B58: 13.69830584 | C58: 13.94593156 | D58: 14.22091922 | E58: 14.5280692 | F58: 14.87337444
A59: Procentuální změna pro DCF | B59: =B56/C56-1 -> -0.008838174516 | C59: =C56/D56-1 -> -0.009719374971 | D59: X | E59: =E56/D56-1 -> 0.01085614397 | F59: =F56/E56-1 -> 0.0120736599 | G59: 0.01037183834
A60: Procentuální změna pro generátory hodnot | B60: =B57/C57-1 -> -0.06221846866 | C60: -0.09470305179 | D60: X | E60: =E57/D57-1 -> 0.1460569192 | F60: 0.1748148494 | G60: 0.1194483223
A61: Procentuální změna pro EVA | B61: =B58/C58-1 -> -0.01775612561 | C61: -0.0193368421 | D61: X | E61: =E58/D58-1 -> 0.02159846106 | F61: 0.02376814436 | G61: 0.02061489328
